Workbook

Sheet Values
E1: ADDITION & SUBTRACTION OF FRACTIONS
E2: Simplified Answers
C4: INSTRUCTIONS
B6: Step 1 | C6: Click to select the denominators to be used for this sheet.
I8: Infomormation
I9: * These questions are generated from a list of all
I10: possible questions. This may result in some repetition
I11: * Answers include working steps.
I12: * Some answers could be 1
B13: Step 2 | C13: Click to select the type of operation.
B19: Step 3 | C19: Click on WorkSheet tab below. | I19: PRESS F9 for NEW WorkSheet
B21: Note | C21: If you click on the WorkSheet tab then hold down shift and click on the Solutions tab, you will be able to print both the WorkSheet and the solutions.

Sheet Worksheet
I1: =Working!M1 -> ADDITION & SUBTRACTION OF FRACTIONS
T2: =CONCATENATE("Worksheet ",Working!J1,Working!H1) -> Worksheet AFS - 489
A3: Simplify the following;
A4: =Working!B4 -> 1 | B4: =Working!AA4 -> 1 | C4: =Working!$Z4 -> + | D4: =Working!AC4 -> 3 | E4: =Working!B14 -> 6 | F4: =Working!AA14 -> 4 | G4: =Working!Z14 -> - | H4: =Working!AC14 -> 1 | I4: =Working!B24 -> 11 | J4: =Working!AA24 -> 1 | K4: =Working!Z24 -> + | L4: =Working!AC24 -> 9 | M4: =Working!B34 -> 16 | N4: =Working!AA34 -> 3 | O4: =Working!Z34 -> - | P4: =Working!AC34 -> 1 | Q4: =Working!B44 -> 21 | R4: =Working!AA44 -> 3 | S4: =Working!Z44 -> - | T4: =Working!AC44 -> 1
B5: =Working!AA5 -> 2 | D5: =Working!AC5 -> 10 | F5: =Working!AA15 -> 5 | H5: =Working!AC15 -> 6 | J5: =Working!AA25 -> 10 | L5: =Working!AC25 -> 10 | N5: =Working!AA35 -> 4 | P5: =Working!AC35 -> 6 | R5: =Working!AA45 -> 10 | T5: =Working!AC45 -> 5
A15: =Working!B6 -> 2 | B15: =Working!AA6 -> 1 | C15: =Working!$Z6 -> + | D15: =Working!AC6 -> 1 | E15: =Working!B16 -> 7 | F15: =Working!AA16 -> 5 | G15: =Working!$Z16 -> - | H15: =Working!AC16 -> 1 | I15: =Working!B26 -> 12 | J15: =Working!AA26 -> 1 | K15: =Working!$Z26 -> + | L15: =Working!AC26 -> 4 | M15: =Working!B36 -> 17 | N15: =Working!AA36 -> 1 | O15: =Working!$Z36 -> + | P15: =Working!AC36 -> 2 | Q15: =Working!B46 -> 22 | R15: =Working!AA46 -> 9 | S15: =Working!$Z46 -> - | T15: =Working!AC46 -> 1
B16: =Working!AA7 -> 10 | D16: =Working!AC7 -> 5 | F16: =Working!AA17 -> 8 | H16: =Working!AC17 -> 3 | J16: =Working!AA27 -> 5 | L16: =Working!AC27 -> 5 | N16: =Working!AA37 -> 10 | P16: =Working!AC37 -> 5 | R16: =Working!AA47 -> 10 | T16: =Working!AC47 -> 10
A26: =Working!B8 -> 3 | B26: =Working!AA8 -> 5 | C26: =Working!$Z8 -> + | D26: =Working!AC8 -> 1 | E26: =Working!B18 -> 8 | F26: =Working!AA18 -> 3 | G26: =Working!$Z18 -> - | H26: =Working!AC18 -> 3 | I26: =Working!B28 -> 13 | J26: =Working!AA28 -> 1 | K26: =Working!$Z28 -> - | L26: =Working!AC28 -> 1 | M26: =Working!B38 -> 18 | N26: =Working!AA38 -> 5 | O26: =Working!$Z38 -> - | P26: =Working!AC38 -> 1 | Q26: =Working!B48 -> 23 | R26: =Working!AA48 -> 1 | S26: =Working!$Z48 -> + | T26: =Working!AC48 -> 4
B27: =Working!AA9 -> 6 | D27: =Working!AC9 -> 6 | F27: =Working!AA19 -> 8 | H27: =Working!AC19 -> 10 | J27: =Working!AA29 -> 4 | L27: =Working!AC29 -> 8 | N27: =Working!AA39 -> 8 | P27: =Working!AC39 -> 10 | R27: =Working!AA49 -> 10 | T27: =Working!AC49 -> 5
A37: =Working!B10 -> 4 | B37: =Working!AA10 -> 2 | C37: =Working!$Z10 -> + | D37: =Working!AC10 -> 1 | E37: =Working!B20 -> 9 | F37: =Working!AA20 -> 3 | G37: =Working!$Z20 -> - | H37: =Working!AC20 -> 1 | I37: =Working!B30 -> 14 | J37: =Working!AA30 -> 1 | K37: =Working!$Z30 -> + | L37: =Working!AC30 -> 2 | M37: =Working!B40 -> 19 | N37: =Working!AA40 -> 2 | O37: =Working!$Z40 -> - | P37: =Working!AC40 -> 3 | Q37: =Working!B50 -> 24 | R37: =Working!AA50 -> 1 | S37: =Working!$Z50 -> + | T37: =Working!AC50 -> 1
B38: =Working!AA11 -> 3 | D38: =Working!AC11 -> 5 | F38: =Working!AA21 -> 5 | H38: =Working!AC21 -> 5 | J38: =Working!AA31 -> 5 | L38: =Working!AC31 -> 5 | N38: =Working!AA41 -> 5 | P38: =Working!AC41 -> 10 | R38: =Working!AA51 -> 4 | T38: =Working!AC51 -> 10
A48: =Working!B12 -> 5 | B48: =Working!AA12 -> 5 | C48: =Working!$Z12 -> + | D48: =Working!AC12 -> 1 | E48: =Working!B22 -> 10 | F48: =Working!AA22 -> 1 | G48: =Working!$Z22 -> + | H48: =Working!AC22 -> 3 | I48: =Working!B32 -> 15 | J48: =Working!AA32 -> 1 | K48: =Working!$Z32 -> + | L48: =Working!AC32 -> 1 | M48: =Working!B42 -> 20 | N48: =Working!AA42 -> 4 | O48: =Working!$Z42 -> + | P48: =Working!AC42 -> 1 | Q48: =Working!B52 -> 25 | R48: =Working!AA52 -> 1 | S48: =Working!$Z52 -> - | T48: =Working!AC52 -> 1
B49: =Working!AA13 -> 6 | D49: =Working!AC13 -> 6 | F49: =Working!AA23 -> 6 | H49: =Working!AC23 -> 10 | J49: =Working!AA33 -> 6 | L49: =Working!AC33 -> 4 | N49: =Working!AA43 -> 5 | P49: =Working!AC43 -> 5 | R49: =Working!AA53 -> 2 | T49: =Working!AC53 -> 8

Sheet Answers
I1: =Working!M1 -> ADDITION & SUBTRACTION OF FRACTIONS
I2: Solutions | T2: =CONCATENATE("Worksheet ",Working!J1,Working!H1) -> Worksheet AFS - 489
A3: Simplify the following;
A4: =Working!B4 -> 1 | B4: =Working!AA4 -> 1 | C4: =Working!$Z4 -> + | D4: =Working!AC4 -> 3 | E4: =Working!B14 -> 6 | F4: =Working!AA14 -> 4 | G4: =Working!Z14 -> - | H4: =Working!AC14 -> 1 | I4: =Working!B24 -> 11 | J4: =Working!AA24 -> 1 | K4: =Working!Z24 -> + | L4: =Working!AC24 -> 9 | M4: =Working!B34 -> 16 | N4: =Working!AA34 -> 3 | O4: =Working!Z34 -> - | P4: =Working!AC34 -> 1 | Q4: =Working!B44 -> 21 | R4: =Working!AA44 -> 3 | S4: =Working!Z44 -> - | T4: =Working!AC44 -> 1
B5: =Working!AA5 -> 2 | D5: =Working!AC5 -> 10 | F5: =Working!AA15 -> 5 | H5: =Working!AC15 -> 6 | J5: =Working!AA25 -> 10 | L5: =Working!AC25 -> 10 | N5: =Working!AA35 -> 4 | P5: =Working!AC35 -> 6 | R5: =Working!AA45 -> 10 | T5: =Working!AC45 -> 5
A6: = | B6: =Working!$AE4 -> 10 | C6: =Working!$Z4 -> + | D6: =Working!$AG4 -> 6 | E6: = | F6: =Working!$AE14 -> 24 | G6: =Working!Z14 -> - | H6: =Working!$AG14 -> 5 | I6: = | J6: =Working!$AE24 -> 10 | K6: =Working!Z24 -> + | L6: =Working!$AG24 -> 90 | M6: = | N6: =Working!$AE34 -> 18 | O6: =Working!Z34 -> - | P6: =Working!$AG34 -> 4 | Q6: = | R6: =Working!$AE44 -> 15 | S6: =Working!Z44 -> - | T6: =Working!$AG44 -> 10
B7: =Working!$AE5 -> 10 | D7: =Working!$AG5 -> 20 | F7: =Working!$AE15 -> 30 | H7: =Working!$AG15 -> 30 | J7: =Working!$AE25 -> 10 | L7: =Working!$AG25 -> 100 | N7: =Working!$AE35 -> 24 | P7: =Working!$AG35 -> 24 | R7: =Working!$AE45 -> 50 | T7: =Working!$AG45 -> 50
A8: = | B8: =Working!$AI4 -> 16 | E8: = | F8: =Working!$AI14 -> 19 | I8: = | J8: =Working!$AI24 -> 100 | M8: = | N8: =Working!$AI34 -> 14 | Q8: = | R8: =Working!$AI44 -> 5
B9: =Working!$AI5 -> 20 | F9: =Working!$AI15 -> 30 | J9: =Working!$AI25 -> 100 | N9: =Working!$AI35 -> 24 | R9: =Working!$AI45 -> 50
A10: =IF(B10="","","=") -> = | B10: =IF(Working!AO4=B8,"",Working!AO4) -> 4 | E10: =IF(F10="","","=") ->  | F10: =IF(Working!AO14=F8,"",Working!AO14) ->  | I10: =IF(J10="","","=") -> = | J10: =IF(Working!AO24=J8,"",Working!AO24) -> 1 | M10: =IF(N10="","","=") -> = | N10: =IF(Working!AO34=N8,"",Working!AO34) -> 7 | Q10: =IF(R10="","","=") -> = | R10: =IF(Working!AO44=R8,"",Working!AO44) -> 1
B11: =IF(Working!AP4=B9,"",Working!AP4) -> 5 | F11: =IF(Working!AP14=F9,"",Working!AP14) ->  | J11: =IF(Working!AP24=J9,"",Working!AP24) ->  | N11: =IF(Working!AP34=N9,"",Working!AP34) -> 12 | R11: =IF(Working!AP44=R9,"",Working!AP44) -> 10
A15: =Working!B6 -> 2 | B15: =Working!AA6 -> 1 | C15: =Working!$Z6 -> + | D15: =Working!AC6 -> 1 | E15: =Working!B16 -> 7 | F15: =Working!AA16 -> 5 | G15: =Working!$Z16 -> - | H15: =Working!AC16 -> 1 | I15: =Working!B26 -> 12 | J15: =Working!AA26 -> 1 | K15: =Working!$Z26 -> + | L15: =Working!AC26 -> 4 | M15: =Working!B36 -> 17 | N15: =Working!AA36 -> 1 | O15: =Working!$Z36 -> + | P15: =Working!AC36 -> 2 | Q15: =Working!B46 -> 22 | R15: =Working!AA46 -> 9 | S15: =Working!$Z46 -> - | T15: =Working!AC46 -> 1
B16: =Working!AA7 -> 10 | D16: =Working!AC7 -> 5 | F16: =Working!AA17 -> 8 | H16: =Working!AC17 -> 3 | J16: =Working!AA27 -> 5 | L16: =Working!AC27 -> 5 | N16: =Working!AA37 -> 10 | P16: =Working!AC37 -> 5 | R16: =Working!AA47 -> 10 | T16: =Working!AC47 -> 10
A17: = | B17: =Working!$AE6 -> 5 | C17: =Working!$Z6 -> + | D17: =Working!$AG6 -> 10 | E17: = | F17: =Working!$AE16 -> 15 | G17: =Working!$Z16 -> - | H17: =Working!$AG16 -> 8 | I17: = | J17: =Working!$AE26 -> 5 | K17: =Working!$Z26 -> + | L17: =Working!$AG26 -> 20 | M17: = | N17: =Working!$AE36 -> 5 | O17: =Working!$Z36 -> + | P17: =Working!$AG36 -> 20 | Q17: = | R17: =Working!$AE46 -> 90 | S17: =Working!$Z46 -> - | T17: =Working!$AG46 -> 10
B18: =Working!$AE7 -> 10 | D18: =Working!$AG7 -> 50 | F18: =Working!$AE17 -> 24 | H18: =Working!$AG17 -> 24 | J18: =Working!$AE27 -> 5 | L18: =Working!$AG27 -> 25 | N18: =Working!$AE37 -> 10 | P18: =Working!$AG37 -> 50 | R18: =Working!$AE47 -> 100 | T18: =Working!$AG47 -> 100
A19: = | B19: =Working!$AI6 -> 15 | E19: = | F19: =Working!$AI16 -> 7 | I19: = | J19: =Working!$AI26 -> 25 | M19: = | N19: =Working!$AI36 -> 25 | Q19: = | R19: =Working!$AI46 -> 80
B20: =Working!$AI7 -> 50 | F20: =Working!$AI17 -> 24 | J20: =Working!$AI27 -> 25 | N20: =Working!$AI37 -> 50 | R20: =Working!$AI47 -> 100
A21: =IF(B21="","","=") -> = | B21: =IF(Working!AO6=B19,"",Working!AO6) -> 3 | E21: =IF(F21="","","=") ->  | F21: =IF(Working!AO16=F19,"",Working!AO16) ->  | I21: =IF(J21="","","=") -> = | J21: =IF(Working!AO26=J19,"",Working!AO26) -> 1 | M21: =IF(N21="","","=") -> = | N21: =IF(Working!AO36=N19,"",Working!AO36) -> 1 | Q21: =IF(R21="","","=") -> = | R21: =IF(Working!AO46=R19,"",Working!AO46) -> 4
B22: =IF(Working!AP6=B20,"",Working!AP6) -> 10 | F22: =IF(Working!AP16=F20,"",Working!AP16) ->  | J22: =IF(Working!AP26=J20,"",Working!AP26) ->  | N22: =IF(Working!AP36=N20,"",Working!AP36) -> 2 | R22: =IF(Working!AP46=R20,"",Working!AP46) -> 5
A26: =Working!B8 -> 3 | B26: =Working!AA8 -> 5 | C26: =Working!$Z8 -> + | D26: =Working!AC8 -> 1 | E26: =Working!B18 -> 8 | F26: =Working!AA18 -> 3 | G26: =Working!$Z18 -> - | H26: =Working!AC18 -> 3 | I26: =Working!B28 -> 13 | J26: =Working!AA28 -> 1 | K26: =Working!$Z28 -> - | L26: =Working!AC28 -> 1 | M26: =Working!B38 -> 18 | N26: =Working!AA38 -> 5 | O26: =Working!$Z38 -> - | P26: =Working!AC38 -> 1 | Q26: =Working!B48 -> 23 | R26: =Working!AA48 -> 1 | S26: =Working!$Z48 -> + | T26: =Working!AC48 -> 4
B27: =Working!AA9 -> 6 | D27: =Working!AC9 -> 6 | F27: =Working!AA19 -> 8 | H27: =Working!AC19 -> 10 | J27: =Working!AA29 -> 4 | L27: =Working!AC29 -> 8 | N27: =Working!AA39 -> 8 | P27: =Working!AC39 -> 10 | R27: =Working!AA49 -> 10 | T27: =Working!AC49 -> 5
A28: = | B28: =Working!$AE8 -> 30 | C28: =Working!$Z8 -> + | D28: =Working!$AG8 -> 6 | E28: = | F28: =Working!$AE18 -> 30 | G28: =Working!$Z18 -> - | H28: =Working!$AG18 -> 24 | I28: = | J28: =Working!$AE28 -> 8 | K28: =Working!$Z28 -> - | L28: =Working!$AG28 -> 4 | M28: = | N28: =Working!$AE38 -> 50 | O28: =Working!$Z38 -> - | P28: =Working!$AG38 -> 8 | Q28: = | R28: =Working!$AE48 -> 5 | S28: =Working!$Z48 -> + | T28: =Working!$AG48 -> 40
B29: =Working!$AE9 -> 6 | D29: =Working!$AG9 -> 36 | F29: =Working!$AE19 -> 80 | H29: =Working!$AG19 -> 80 | J29: =Working!$AE29 -> 32 | L29: =Working!$AG29 -> 32 | N29: =Working!$AE39 -> 80 | P29: =Working!$AG39 -> 80 | R29: =Working!$AE49 -> 10 | T29: =Working!$AG49 -> 50
A30: = | B30: =Working!$AI8 -> 36 | E30: = | F30: =Working!$AI18 -> 6 | I30: = | J30: =Working!$AI28 -> 4 | M30: = | N30: =Working!$AI38 -> 42 | Q30: = | R30: =Working!$AI48 -> 45
B31: =Working!$AI9 -> 36 | F31: =Working!$AI19 -> 80 | J31: =Working!$AI29 -> 32 | N31: =Working!$AI39 -> 80 | R31: =Working!$AI49 -> 50
A32: =IF(B32="","","=") -> = | B32: =IF(Working!AO8=B30,"",Working!AO8) -> 1 | E32: =IF(F32="","","=") -> = | F32: =IF(Working!AO18=F30,"",Working!AO18) -> 3 | I32: =IF(J32="","","=") -> = | J32: =IF(Working!AO28=J30,"",Working!AO28) -> 1 | M32: =IF(N32="","","=") -> = | N32: =IF(Working!AO38=N30,"",Working!AO38) -> 21 | Q32: =IF(R32="","","=") -> = | R32: =IF(Working!AO48=R30,"",Working!AO48) -> 9
B33: =IF(Working!AP8=B31,"",Working!AP8) ->  | F33: =IF(Working!AP18=F31,"",Working!AP18) -> 40 | J33: =IF(Working!AP28=J31,"",Working!AP28) -> 8 | N33: =IF(Working!AP38=N31,"",Working!AP38) -> 40 | R33: =IF(Working!AP48=R31,"",Working!AP48) -> 10
A37: =Working!B10 -> 4 | B37: =Working!AA10 -> 2 | C37: =Working!$Z10 -> + | D37: =Working!AC10 -> 1 | E37: =Working!B20 -> 9 | F37: =Working!AA20 -> 3 | G37: =Working!$Z20 -> - | H37: =Working!AC20 -> 1 | I37: =Working!B30 -> 14 | J37: =Working!AA30 -> 1 | K37: =Working!$Z30 -> + | L37: =Working!AC30 -> 2 | M37: =Working!B40 -> 19 | N37: =Working!AA40 -> 2 | O37: =Working!$Z40 -> - | P37: =Working!AC40 -> 3 | Q37: =Working!B50 -> 24 | R37: =Working!AA50 -> 1 | S37: =Working!$Z50 -> + | T37: =Working!AC50 -> 1
B38: =Working!AA11 -> 3 | D38: =Working!AC11 -> 5 | F38: =Working!AA21 -> 5 | H38: =Working!AC21 -> 5 | J38: =Working!AA31 -> 5 | L38: =Working!AC31 -> 5 | N38: =Working!AA41 -> 5 | P38: =Working!AC41 -> 10 | R38: =Working!AA51 -> 4 | T38: =Working!AC51 -> 10
A39: = | B39: =Working!$AE10 -> 10 | C39: =Working!$Z10 -> + | D39: =Working!$AG10 -> 3 | E39: = | F39: =Working!$AE20 -> 15 | G39: =Working!$Z20 -> - | H39: =Working!$AG20 -> 5 | I39: = | J39: =Working!$AE30 -> 5 | K39: =Working!$Z30 -> + | L39: =Working!$AG30 -> 10 | M39: = | N39: =Working!$AE40 -> 20 | O39: =Working!$Z40 -> - | P39: =Working!$AG40 -> 15 | Q39: = | R39: =Working!$AE50 -> 10 | S39: =Working!$Z50 -> + | T39: =Working!$AG50 -> 4
B40: =Working!$AE11 -> 5 | D40: =Working!$AG11 -> 15 | F40: =Working!$AE21 -> 25 | H40: =Working!$AG21 -> 25 | J40: =Working!$AE31 -> 5 | L40: =Working!$AG31 -> 25 | N40: =Working!$AE41 -> 50 | P40: =Working!$AG41 -> 50 | R40: =Working!$AE51 -> 10 | T40: =Working!$AG51 -> 40
A41: = | B41: =Working!$AI10 -> 13 | E41: = | F41: =Working!$AI20 -> 10 | I41: = | J41: =Working!$AI30 -> 15 | M41: = | N41: =Working!$AI40 -> 5 | Q41: = | R41: =Working!$AI50 -> 14
B42: =Working!$AI11 -> 15 | F42: =Working!$AI21 -> 25 | J42: =Working!$AI31 -> 25 | N42: =Working!$AI41 -> 50 | R42: =Working!$AI51 -> 40
A43: =IF(B43="","","=") ->  | B43: =IF(Working!AO10=B41,"",Working!AO10) ->  | E43: =IF(F43="","","=") -> = | F43: =IF(Working!AO20=F41,"",Working!AO20) -> 2 | I43: =IF(J43="","","=") -> = | J43: =IF(Working!AO30=J41,"",Working!AO30) -> 3 | M43: =IF(N43="","","=") -> = | N43: =IF(Working!AO40=N41,"",Working!AO40) -> 1 | Q43: =IF(R43="","","=") -> = | R43: =IF(Working!AO50=R41,"",Working!AO50) -> 7
B44: =IF(Working!AP10=B42,"",Working!AP10) ->  | F44: =IF(Working!AP20=F42,"",Working!AP20) -> 5 | J44: =IF(Working!AP30=J42,"",Working!AP30) -> 5 | N44: =IF(Working!AP40=N42,"",Working!AP40) -> 10 | R44: =IF(Working!AP50=R42,"",Working!AP50) -> 20
A48: =Working!B12 -> 5 | B48: =Working!AA12 -> 5 | C48: =Working!$Z12 -> + | D48: =Working!AC12 -> 1 | E48: =Working!B22 -> 10 | F48: =Working!AA22 -> 1 | G48: =Working!$Z22 -> + | H48: =Working!AC22 -> 3 | I48: =Working!B32 -> 15 | J48: =Working!AA32 -> 1 | K48: =Working!$Z32 -> + | L48: =Working!AC32 -> 1 | M48: =Working!B42 -> 20 | N48: =Working!AA42 -> 4 | O48: =Working!$Z42 -> + | P48: =Working!AC42 -> 1 | Q48: =Working!B52 -> 25 | R48: =Working!AA52 -> 1 | S48: =Working!$Z52 -> - | T48: =Working!AC52 -> 1
B49: =Working!AA13 -> 6 | D49: =Working!AC13 -> 6 | F49: =Working!AA23 -> 6 | H49: =Working!AC23 -> 10 | J49: =Working!AA33 -> 6 | L49: =Working!AC33 -> 4 | N49: =Working!AA43 -> 5 | P49: =Working!AC43 -> 5 | R49: =Working!AA53 -> 2 | T49: =Working!AC53 -> 8
A50: = | B50: =Working!$AE12 -> 30 | C50: =Working!$Z12 -> + | D50: =Working!$AG12 -> 6 | E50: = | F50: =Working!$AE22 -> 10 | G50: =Working!$Z22 -> + | H50: =Working!$AG22 -> 18 | I50: = | J50: =Working!$AE32 -> 4 | K50: =Working!$Z32 -> + | L50: =Working!$AG32 -> 6 | M50: = | N50: =Working!$AE42 -> 20 | O50: =Working!$Z42 -> + | P50: =Working!$AG42 -> 5 | Q50: = | R50: =Working!$AE52 -> 8 | S50: =Working!$Z52 -> - | T50: =Working!$AG52 -> 2
B51: =Working!$AE13 -> 6 | D51: =Working!$AG13 -> 36 | F51: =Working!$AE23 -> 6 | H51: =Working!$AG23 -> 60 | J51: =Working!$AE33 -> 6 | L51: =Working!$AG33 -> 24 | N51: =Working!$AE43 -> 5 | P51: =Working!$AG43 -> 25 | R51: =Working!$AE53 -> 16 | T51: =Working!$AG53 -> 16
A52: = | B52: =Working!$AI12 -> 36 | E52: = | F52: =Working!$AI22 -> 28 | I52: = | J52: =Working!$AI32 -> 10 | M52: = | N52: =Working!$AI42 -> 25 | Q52: = | R52: =Working!$AI52 -> 6
B53: =Working!$AI13 -> 36 | F53: =Working!$AI23 -> 60 | J53: =Working!$AI33 -> 24 | N53: =Working!$AI43 -> 25 | R53: =Working!$AI53 -> 16
A54: =IF(B54="","","=") -> = | B54: =IF(Working!AO12=B52,"",Working!AO12) -> 1 | E54: =IF(F54="","","=") -> = | F54: =IF(Working!AO22=F52,"",Working!AO22) -> 7 | I54: =IF(J54="","","=") -> = | J54: =IF(Working!AO32=J52,"",Working!AO32) -> 5 | M54: =IF(N54="","","=") -> = | N54: =IF(Working!AO42=N52,"",Working!AO42) -> 1 | Q54: =IF(R54="","","=") -> = | R54: =IF(Working!AO52=R52,"",Working!AO52) -> 3
B55: =IF(Working!AP12=B53,"",Working!AP12) ->  | F55: =IF(Working!AP22=F53,"",Working!AP22) -> 15 | J55: =IF(Working!AP32=J53,"",Working!AP32) -> 12 | N55: =IF(Working!AP42=N53,"",Working!AP42) ->  | R55: =IF(Working!AP52=R53,"",Working!AP52) -> 8

Sheet Working (hidden)
A1: =INT(900*RAND()+100) -> 489 | H1: =TEXT(A1,0) -> 489 | J1: AFS - | M1: ADDITION & SUBTRACTION OF FRACTIONS | Y1: 2
E3: a | F3: b | G3: c | H3: d | J3: Subtraction
B4: 1 | C4: =IF($Y$1=3,"2478",IF($Y$1=2,"111","73")) -> 111 | D4: =RANDBETWEEN(1,C4) -> 7 | E4: =LOOKUP(D4,Matrix!$A$4:$B$2481) -> 1 | F4: =LOOKUP(D4,Matrix!$A$4:$C$2481) -> 2 | G4: =LOOKUP(D4,Matrix!$A$4:$D$2481) -> 3 | H4: =LOOKUP(D4,Matrix!$A$4:$E$2481) -> 10 | J4: =E4 -> 1 | K4: =G4 -> 3 | L4: =E4*H4 -> 10 | M4: =G4*F4 -> 6 | N4: =IF(M4>L4,K4,J4) -> 1 | O4: =IF(M4>L4,J4,K4) -> 3 | P4: =IF(M4>L4,M4,L4) -> 10 | Q4: =IF(M4>L4,L4,M4) -> 6 | R4: =P4-Q4 -> 4 | T4: 1 | U4: =R4/T4 -> 4 | Y4: =INT(2*RAND()) -> 0 | Z4: =IF(Y4=0," + "," - ") -> + | AA4: =IF($Y4=1,N4,J4) -> 1 | AB4: =Z4 -> + | AC4: =IF($Y4=1,O4,K4) -> 3 | AD4: = | AE4: =IF($Y4=1,P4,L4) -> 10 | AF4: =Z4 -> + | AG4: =IF($Y4=1,Q4,M4) -> 6 | AH4: = | AI4: =IF($Y4=1,R4,L4+M4) -> 16 | AL4: =GCD(AI4,AI5) -> 4 | AM4: =AI4/AL4 -> 4 | AO4: =AM4 -> 4 | AP4: =IF(AND(AM4=1,AM5=1),"",AM5) -> 5 | AR4: =CONCATENATE(AI4,"/",AI5) -> 16/20 | AS4: = | AT4: =CONCATENATE(AM4,"/",AM5) -> 4/5
J5: =F4 -> 2 | K5: =H4 -> 10 | L5: =F4*H4 -> 20 | M5: =F4*H4 -> 20 | N5: =IF(M4>L4,K5,J5) -> 2 | O5: =IF(M4>L4,J5,K5) -> 10 | P5: =L5 -> 20 | Q5: =M5 -> 20 | R5: =Q5 -> 20 | T5: 1 | U5: =R5/T4 -> 20 | Y5: 0 | AA5: =IF($Y4=1,N5,J5) -> 2 | AC5: =IF($Y4=1,O5,K5) -> 10 | AE5: =IF($Y4=1,Q5,O5) -> 10 | AG5: =IF($Y4=1,Q5,M5) -> 20 | AI5: =IF($Y4=1,R5,P5) -> 20 | AM5: =AI5/AL4 -> 5
B6: 2 | C6: =IF($Y$1=3,"2478",IF($Y$1=2,"111","73")) -> 111 | D6: =RANDBETWEEN(1,C6) -> 47 | E6: =LOOKUP(D6,Matrix!$A$4:$B$2481) -> 1 | F6: =LOOKUP(D6,Matrix!$A$4:$C$2481) -> 10 | G6: =LOOKUP(D6,Matrix!$A$4:$D$2481) -> 1 | H6: =LOOKUP(D6,Matrix!$A$4:$E$2481) -> 5 | J6: =E6 -> 1 | K6: =G6 -> 1 | L6: =E6*H6 -> 5 | M6: =G6*F6 -> 10 | N6: =IF(M6>L6,K6,J6) -> 1 | O6: =IF(M6>L6,J6,K6) -> 1 | P6: =IF(M6>L6,M6,L6) -> 10 | Q6: =IF(M6>L6,L6,M6) -> 5 | R6: =P6-Q6 -> 5 | T6: 1 | U6: =R6/T6 -> 5 | Y6: 0 | Z6: =IF(Y6=0," + "," - ") -> + | AA6: =IF($Y6=1,N6,J6) -> 1 | AB6: =Z6 -> + | AC6: =IF($Y6=1,O6,K6) -> 1 | AD6: = | AE6: =IF($Y6=1,P6,L6) -> 5 | AF6: =Z6 -> + | AG6: =IF($Y6=1,Q6,M6) -> 10 | AH6: = | AI6: =IF($Y6=1,R6,L6+M6) -> 15 | AL6: =GCD(AI6,AI7) -> 5 | AM6: =AI6/AL6 -> 3 | AO6: =AM6 -> 3 | AP6: =IF(AND(AM6=1,AM7=1),"",AM7) -> 10 | AR6: =CONCATENATE(AI6,"/",AI7) -> 15/50 | AS6: = | AT6: =CONCATENATE(AM6,"/",AM7) -> 3/10
J7: =F6 -> 10 | K7: =H6 -> 5 | L7: =F6*H6 -> 50 | M7: =F6*H6 -> 50 | N7: =IF(M6>L6,K7,J7) -> 5 | O7: =IF(M6>L6,J7,K7) -> 10 | P7: =L7 -> 50 | Q7: =M7 -> 50 | R7: =Q7 -> 50 | T7: 1 | U7: =R7/T6 -> 50 | Y7: 1 | AA7: =IF($Y6=1,N7,J7) -> 10 | AC7: =IF($Y6=1,O7,K7) -> 5 | AE7: =IF($Y6=1,Q7,O7) -> 10 | AG7: =IF($Y6=1,Q7,M7) -> 50 | AI7: =IF($Y6=1,R7,P7) -> 50 | AM7: =AI7/AL6 -> 10
B8: 3 | C8: =IF($Y$1=3,"2478",IF($Y$1=2,"111","73")) -> 111 | D8: 109 | E8: =LOOKUP(D8,Matrix!$A$4:$B$2481) -> 5 | F8: =LOOKUP(D8,Matrix!$A$4:$C$2481) -> 6 | G8: =LOOKUP(D8,Matrix!$A$4:$D$2481) -> 1 | H8: =LOOKUP(D8,Matrix!$A$4:$E$2481) -> 6 | J8: =E8 -> 5 | K8: =G8 -> 1 | L8: =E8*H8 -> 30 | M8: =G8*F8 -> 6 | N8: =IF(M8>L8,K8,J8) -> 5 | O8: =IF(M8>L8,J8,K8) -> 1 | P8: =IF(M8>L8,M8,L8) -> 30 | Q8: =IF(M8>L8,L8,M8) -> 6 | R8: =P8-Q8 -> 24 | T8: 1 | U8: =R8/T8 -> 24 | Y8: 0 | Z8: =IF(Y8=0," + "," - ") -> + | AA8: =IF($Y8=1,N8,J8) -> 5 | AB8: =Z8 -> + | AC8: =IF($Y8=1,O8,K8) -> 1 | AD8: = | AE8: =IF($Y8=1,P8,L8) -> 30 | AF8: =Z8 -> + | AG8: =IF($Y8=1,Q8,M8) -> 6 | AH8: = | AI8: =IF($Y8=1,R8,L8+M8) -> 36 | AL8: =GCD(AI8,AI9) -> 36 | AM8: =AI8/AL8 -> 1 | AO8: =AM8 -> 1 | AP8: =IF(AND(AM8=1,AM9=1),"",AM9) ->  | AR8: =CONCATENATE(AI8,"/",AI9) -> 36/36 | AS8: = | AT8: =CONCATENATE(AM8,"/",AM9) -> 1/1
J9: =F8 -> 6 | K9: =H8 -> 6 | L9: =F8*H8 -> 36 | M9: =F8*H8 -> 36 | N9: =IF(M8>L8,K9,J9) -> 6 | O9: =IF(M8>L8,J9,K9) -> 6 | P9: =L9 -> 36 | Q9: =M9 -> 36 | R9: =Q9 -> 36 | T9: 1 | U9: =R9/T8 -> 36 | Y9: 0 | AA9: =IF($Y8=1,N9,J9) -> 6 | AC9: =IF($Y8=1,O9,K9) -> 6 | AE9: =IF($Y8=1,Q9,O9) -> 6 | AG9: =IF($Y8=1,Q9,M9) -> 36 | AI9: =IF($Y8=1,R9,P9) -> 36 | AM9: =AI9/AL8 -> 1
B10: 4 | C10: =IF($Y$1=3,"2478",IF($Y$1=2,"111","73")) -> 111 | D10: 88 | E10: =LOOKUP(D10,Matrix!$A$4:$B$2481) -> 2 | F10: =LOOKUP(D10,Matrix!$A$4:$C$2481) -> 3 | G10: =LOOKUP(D10,Matrix!$A$4:$D$2481) -> 1 | H10: =LOOKUP(D10,Matrix!$A$4:$E$2481) -> 5 | J10: =E10 -> 2 | K10: =G10 -> 1 | L10: =E10*H10 -> 10 | M10: =G10*F10 -> 3 | N10: =IF(M10>L10,K10,J10) -> 2 | O10: =IF(M10>L10,J10,K10) -> 1 | P10: =IF(M10>L10,M10,L10) -> 10 | Q10: =IF(M10>L10,L10,M10) -> 3 | R10: =P10-Q10 -> 7 | T10: 1 | U10: =R10/T10 -> 7 | Y10: 0 | Z10: =IF(Y10=0," + "," - ") -> + | AA10: =IF($Y10=1,N10,J10) -> 2 | AB10: =Z10 -> + | AC10: =IF($Y10=1,O10,K10) -> 1 | AD10: = | AE10: =IF($Y10=1,P10,L10) -> 10 | AF10: =Z10 -> + | AG10: =IF($Y10=1,Q10,M10) -> 3 | AH10: = | AI10: =IF($Y10=1,R10,L10+M10) -> 13 | AL10: =GCD(AI10,AI11) -> 1 | AM10: =AI10/AL10 -> 13 | AO10: =AM10 -> 13 | AP10: =IF(AND(AM10=1,AM11=1),"",AM11) -> 15 | AR10: =CONCATENATE(AI10,"/",AI11) -> 13/15 | AS10: = | AT10: =CONCATENATE(AM10,"/",AM11) -> 13/15
J11: =F10 -> 3 | K11: =H10 -> 5 | L11: =F10*H10 -> 15 | M11: =F10*H10 -> 15 | N11: =IF(M10>L10,K11,J11) -> 3 | O11: =IF(M10>L10,J11,K11) -> 5 | P11: =L11 -> 15 | Q11: =M11 -> 15 | R11: =Q11 -> 15 | T11: 1 | U11: =R11/T10 -> 15 | Y11: 1 | AA11: =IF($Y10=1,N11,J11) -> 3 | AC11: =IF($Y10=1,O11,K11) -> 5 | AE11: =IF($Y10=1,Q11,O11) -> 5 | AG11: =IF($Y10=1,Q11,M11) -> 15 | AI11: =IF($Y10=1,R11,P11) -> 15 | AM11: =AI11/AL10 -> 15
B12: 5 | C12: =IF($Y$1=3,"2478",IF($Y$1=2,"111","73")) -> 111 | D12: 109 | E12: =LOOKUP(D12,Matrix!$A$4:$B$2481) -> 5 | F12: =LOOKUP(D12,Matrix!$A$4:$C$2481) -> 6 | G12: =LOOKUP(D12,Matrix!$A$4:$D$2481) -> 1 | H12: =LOOKUP(D12,Matrix!$A$4:$E$2481) -> 6 | J12: =E12 -> 5 | K12: =G12 -> 1 | L12: =E12*H12 -> 30 | M12: =G12*F12 -> 6 | N12: =IF(M12>L12,K12,J12) -> 5 | O12: =IF(M12>L12,J12,K12) -> 1 | P12: =IF(M12>L12,M12,L12) -> 30 | Q12: =IF(M12>L12,L12,M12) -> 6 | R12: =P12-Q12 -> 24 | T12: 1 | U12: =R12/T12 -> 24 | Y12: 0 | Z12: =IF(Y12=0," + "," - ") -> + | AA12: =IF($Y12=1,N12,J12) -> 5 | AB12: =Z12 -> + | AC12: =IF($Y12=1,O12,K12) -> 1 | AD12: = | AE12: =IF($Y12=1,P12,L12) -> 30 | AF12: =Z12 -> + | AG12: =IF($Y12=1,Q12,M12) -> 6 | AH12: = | AI12: =IF($Y12=1,R12,L12+M12) -> 36 | AL12: =GCD(AI12,AI13) -> 36 | AM12: =AI12/AL12 -> 1 | AO12: =AM12 -> 1 | AP12: =IF(AND(AM12=1,AM13=1),"",AM13) ->  | AR12: =CONCATENATE(AI12,"/",AI13) -> 36/36 | AS12: = | AT12: =CONCATENATE(AM12,"/",AM13) -> 1/1
J13: =F12 -> 6 | K13: =H12 -> 6 | L13: =F12*H12 -> 36 | M13: =F12*H12 -> 36 | N13: =IF(M12>L12,K13,J13) -> 6 | O13: =IF(M12>L12,J13,K13) -> 6 | P13: =L13 -> 36 | Q13: =M13 -> 36 | R13: =Q13 -> 36 | T13: 1 | U13: =R13/T12 -> 36 | Y13: 1 | AA13: =IF($Y12=1,N13,J13) -> 6 | AC13: =IF($Y12=1,O13,K13) -> 6 | AE13: =IF($Y12=1,Q13,O13) -> 6 | AG13: =IF($Y12=1,Q13,M13) -> 36 | AI13: =IF($Y12=1,R13,P13) -> 36 | AM13: =AI13/AL12 -> 1
B14: 6 | C14: =IF($Y$1=3,"2478",IF($Y$1=2,"111","73")) -> 111 | D14: 101 | E14: =LOOKUP(D14,Matrix!$A$4:$B$2481) -> 1 | F14: =LOOKUP(D14,Matrix!$A$4:$C$2481) -> 6 | G14: =LOOKUP(D14,Matrix!$A$4:$D$2481) -> 4 | H14: =LOOKUP(D14,Matrix!$A$4:$E$2481) -> 5 | J14: =E14 -> 1 | K14: =G14 -> 4 | L14: =E14*H14 -> 5 | M14: =G14*F14 -> 24 | N14: =IF(M14>L14,K14,J14) -> 4 | O14: =IF(M14>L14,J14,K14) -> 1 | P14: =IF(M14>L14,M14,L14) -> 24 | Q14: =IF(M14>L14,L14,M14) -> 5 | R14: =P14-Q14 -> 19 | T14: 1 | U14: =R14/T14 -> 19 | Y14: 1 | Z14: =IF(Y14=0," + "," - ") -> - | AA14: =IF($Y14=1,N14,J14) -> 4 | AB14: =Z14 -> - | AC14: =IF($Y14=1,O14,K14) -> 1 | AD14: = | AE14: =IF($Y14=1,P14,L14) -> 24 | AF14: =Z14 -> - | AG14: =IF($Y14=1,Q14,M14) -> 5 | AH14: = | AI14: =IF($Y14=1,R14,L14+M14) -> 19 | AL14: =GCD(AI14,AI15) -> 1 | AM14: =AI14/AL14 -> 19 | AO14: =AM14 -> 19 | AP14: =IF(AND(AM14=1,AM15=1),"",AM15) -> 30 | AR14: =CONCATENATE(AI14,"/",AI15) -> 19/30 | AS14: = | AT14: =CONCATENATE(AM14,"/",AM15) -> 19/30
J15: =F14 -> 6 | K15: =H14 -> 5 | L15: =F14*H14 -> 30 | M15: =F14*H14 -> 30 | N15: =IF(M14>L14,K15,J15) -> 5 | O15: =IF(M14>L14,J15,K15) -> 6 | P15: =L15 -> 30 | Q15: =M15 -> 30 | R15: =Q15 -> 30 | T15: 1 | U15: =R15/T14 -> 30 | Y15: 1 | AA15: =IF($Y14=1,N15,J15) -> 5 | AC15: =IF($Y14=1,O15,K15) -> 6 | AE15: =IF($Y14=1,Q15,O15) -> 30 | AG15: =IF($Y14=1,Q15,M15) -> 30 | AI15: =IF($Y14=1,R15,P15) -> 30 | AM15: =AI15/AL14 -> 30
B16: 7 | C16: =IF($Y$1=3,"2478",IF($Y$1=2,"111","73")) -> 111 | D16: 83 | E16: =LOOKUP(D16,Matrix!$A$4:$B$2481) -> 1 | F16: =LOOKUP(D16,Matrix!$A$4:$C$2481) -> 3 | G16: =LOOKUP(D16,Matrix!$A$4:$D$2481) -> 5 | H16: =LOOKUP(D16,Matrix!$A$4:$E$2481) -> 8 | J16: =E16 -> 1 | K16: =G16 -> 5 | L16: =E16*H16 -> 8 | M16: =G16*F16 -> 15 | N16: =IF(M16>L16,K16,J16) -> 5 | O16: =IF(M16>L16,J16,K16) -> 1 | P16: =IF(M16>L16,M16,L16) -> 15 | Q16: =IF(M16>L16,L16,M16) -> 8 | R16: =P16-Q16 -> 7 | T16: 1 | U16: =R16/T16 -> 7 | Y16: 1 | Z16: =IF(Y16=0," + "," - ") -> - | AA16: =IF($Y16=1,N16,J16) -> 5 | AB16: =Z16 -> - | AC16: =IF($Y16=1,O16,K16) -> 1 | AD16: = | AE16: =IF($Y16=1,P16,L16) -> 15 | AF16: =Z16 -> - | AG16: =IF($Y16=1,Q16,M16) -> 8 | AH16: = | AI16: =IF($Y16=1,R16,L16+M16) -> 7 | AL16: =GCD(AI16,AI17) -> 1 | AM16: =AI16/AL16 -> 7 | AO16: =AM16 -> 7 | AP16: =IF(AND(AM16=1,AM17=1),"",AM17) -> 24 | AR16: =CONCATENATE(AI16,"/",AI17) -> 7/24 | AS16: = | AT16: =CONCATENATE(AM16,"/",AM17) -> 7/24
J17: =F16 -> 3 | K17: =H16 -> 8 | L17: =F16*H16 -> 24 | M17: =F16*H16 -> 24 | N17: =IF(M16>L16,K17,J17) -> 8 | O17: =IF(M16>L16,J17,K17) -> 3 | P17: =L17 -> 24 | Q17: =M17 -> 24 | R17: =Q17 -> 24 | T17: 1 | U17: =R17/T16 -> 24 | Y17: 0 | AA17: =IF($Y16=1,N17,J17) -> 8 | AC17: =IF($Y16=1,O17,K17) -> 3 | AE17: =IF($Y16=1,Q17,O17) -> 24 | AG17: =IF($Y16=1,Q17,M17) -> 24 | AI17: =IF($Y16=1,R17,P17) -> 24 | AM17: =AI17/AL16 -> 24
B18: 8 | C18: =IF($Y$1=3,"2478",IF($Y$1=2,"111","73")) -> 111 | D18: 64 | E18: =LOOKUP(D18,Matrix!$A$4:$B$2481) -> 3 | F18: =LOOKUP(D18,Matrix!$A$4:$C$2481) -> 10 | G18: =LOOKUP(D18,Matrix!$A$4:$D$2481) -> 3 | H18: =LOOKUP(D18,Matrix!$A$4:$E$2481) -> 8 | J18: =E18 -> 3 | K18: =G18 -> 3 | L18: =E18*H18 -> 24 | M18: =G18*F18 -> 30 | N18: =IF(M18>L18,K18,J18) -> 3 | O18: =IF(M18>L18,J18,K18) -> 3 | P18: =IF(M18>L18,M18,L18) -> 30 | Q18: =IF(M18>L18,L18,M18) -> 24 | R18: =P18-Q18 -> 6 | T18: 1 | U18: =R18/T18 -> 6 | Y18: 1 | Z18: =IF(Y18=0," + "," - ") -> - | AA18: =IF($Y18=1,N18,J18) -> 3 | AB18: =Z18 -> - | AC18: =IF($Y18=1,O18,K18) -> 3 | AD18: = | AE18: =IF($Y18=1,P18,L18) -> 30 | AF18: =Z18 -> - | AG18: =IF($Y18=1,Q18,M18) -> 24 | AH18: = | AI18: =IF($Y18=1,R18,L18+M18) -> 6 | AL18: =GCD(AI18,AI19) -> 2 | AM18: =AI18/AL18 -> 3 | AO18: =AM18 -> 3 | AP18: =IF(AND(AM18=1,AM19=1),"",AM19) -> 40 | AR18: =CONCATENATE(AI18,"/",AI19) -> 6/80 | AS18: = | AT18: =CONCATENATE(AM18,"/",AM19) -> 3/40
J19: =F18 -> 10 | K19: =H18 -> 8 | L19: =F18*H18 -> 80 | M19: =F18*H18 -> 80 | N19: =IF(M18>L18,K19,J19) -> 8 | O19: =IF(M18>L18,J19,K19) -> 10 | P19: =L19 -> 80 | Q19: =M19 -> 80 | R19: =Q19 -> 80 | T19: 1 | U19: =R19/T18 -> 80 | Y19: 1 | AA19: =IF($Y18=1,N19,J19) -> 8 | AC19: =IF($Y18=1,O19,K19) -> 10 | AE19: =IF($Y18=1,Q19,O19) -> 80 | AG19: =IF($Y18=1,Q19,M19) -> 80 | AI19: =IF($Y18=1,R19,P19) -> 80 | AM19: =AI19/AL18 -> 40
B20: 9 | C20: =IF($Y$1=3,"2478",IF($Y$1=2,"111","73")) -> 111 | D20: 26 | E20: =LOOKUP(D20,Matrix!$A$4:$B$2481) -> 1 | F20: =LOOKUP(D20,Matrix!$A$4:$C$2481) -> 5 | G20: =LOOKUP(D20,Matrix!$A$4:$D$2481) -> 3 | H20: =LOOKUP(D20,Matrix!$A$4:$E$2481) -> 5 | J20: =E20 -> 1 | K20: =G20 -> 3 | L20: =E20*H20 -> 5 | M20: =G20*F20 -> 15 | N20: =IF(M20>L20,K20,J20) -> 3 | O20: =IF(M20>L20,J20,K20) -> 1 | P20: =IF(M20>L20,M20,L20) -> 15 | Q20: =IF(M20>L20,L20,M20) -> 5 | R20: =P20-Q20 -> 10 | T20: 1 | U20: =R20/T20 -> 10 | Y20: 1 | Z20: =IF(Y20=0," + "," - ") -> - | AA20: =IF($Y20=1,N20,J20) -> 3 | AB20: =Z20 -> - | AC20: =IF($Y20=1,O20,K20) -> 1 | AD20: = | AE20: =IF($Y20=1,P20,L20) -> 15 | AF20: =Z20 -> - | AG20: =IF($Y20=1,Q20,M20) -> 5 | AH20: = | AI20: =IF($Y20=1,R20,L20+M20) -> 10 | AL20: =GCD(AI20,AI21) -> 5 | AM20: =AI20/AL20 -> 2 | AO20: =AM20 -> 2 | AP20: =IF(AND(AM20=1,AM21=1),"",AM21) -> 5 | AR20: =CONCATENATE(AI20,"/",AI21) -> 10/25 | AS20: = | AT20: =CONCATENATE(AM20,"/",AM21) -> 2/5
J21: =F20 -> 5 | K21: =H20 -> 5 | L21: =F20*H20 -> 25 | M21: =F20*H20 -> 25 | N21: =IF(M20>L20,K21,J21) -> 5 | O21: =IF(M20>L20,J21,K21) -> 5 | P21: =L21 -> 25 | Q21: =M21 -> 25 | R21: =Q21 -> 25 | T21: 1 | U21: =R21/T20 -> 25 | Y21: 1 | AA21: =IF($Y20=1,N21,J21) -> 5 | AC21: =IF($Y20=1,O21,K21) -> 5 | AE21: =IF($Y20=1,Q21,O21) -> 25 | AG21: =IF($Y20=1,Q21,M21) -> 25 | AI21: =IF($Y20=1,R21,P21) -> 25 | AM21: =AI21/AL20 -> 5
B22: 10 | C22: =IF($Y$1=3,"2478",IF($Y$1=2,"111","73")) -> 111 | D22: 107 | E22: =LOOKUP(D22,Matrix!$A$4:$B$2481) -> 1 | F22: =LOOKUP(D22,Matrix!$A$4:$C$2481) -> 6 | G22: =LOOKUP(D22,Matrix!$A$4:$D$2481) -> 3 | H22: =LOOKUP(D22,Matrix!$A$4:$E$2481) -> 10 | J22: =E22 -> 1 | K22: =G22 -> 3 | L22: =E22*H22 -> 10 | M22: =G22*F22 -> 18 | N22: =IF(M22>L22,K22,J22) -> 3 | O22: =IF(M22>L22,J22,K22) -> 1 | P22: =IF(M22>L22,M22,L22) -> 18 | Q22: =IF(M22>L22,L22,M22) -> 10 | R22: =P22-Q22 -> 8 | T22: 1 | U22: =R22/T22 -> 8 | Y22: 0 | Z22: =IF(Y22=0," + "," - ") -> + | AA22: =IF($Y22=1,N22,J22) -> 1 | AB22: =Z22 -> + | AC22: =IF($Y22=1,O22,K22) -> 3 | AD22: = | AE22: =IF($Y22=1,P22,L22) -> 10 | AF22: =Z22 -> + | AG22: =IF($Y22=1,Q22,M22) -> 18 | AH22: = | AI22: =IF($Y22=1,R22,L22+M22) -> 28 | AL22: =GCD(AI22,AI23) -> 4 | AM22: =AI22/AL22 -> 7 | AO22: =AM22 -> 7 | AP22: =IF(AND(AM22=1,AM23=1),"",AM23) -> 15 | AR22: =CONCATENATE(AI22,"/",AI23) -> 28/60 | AS22: = | AT22: =CONCATENATE(AM22,"/",AM23) -> 7/15
J23: =F22 -> 6 | K23: =H22 -> 10 | L23: =F22*H22 -> 60 | M23: =F22*H22 -> 60 | N23: =IF(M22>L22,K23,J23) -> 10 | O23: =IF(M22>L22,J23,K23) -> 6 | P23: =L23 -> 60 | Q23: =M23 -> 60 | R23: =Q23 -> 60 | T23: 1 | U23: =R23/T22 -> 60 | Y23: 1 | AA23: =IF($Y22=1,N23,J23) -> 6 | AC23: =IF($Y22=1,O23,K23) -> 10 | AE23: =IF($Y22=1,Q23,O23) -> 6 | AG23: =IF($Y22=1,Q23,M23) -> 60 | AI23: =IF($Y22=1,R23,P23) -> 60 | AM23: =AI23/AL22 -> 15
B24: 11 | C24: =IF($Y$1=3,"2478",IF($Y$1=2,"111","73")) -> 111 | D24: 57 | E24: =LOOKUP(D24,Matrix!$A$4:$B$2481) -> 1 | F24: =LOOKUP(D24,Matrix!$A$4:$C$2481) -> 10 | G24: =LOOKUP(D24,Matrix!$A$4:$D$2481) -> 9 | H24: =LOOKUP(D24,Matrix!$A$4:$E$2481) -> 10 | J24: =E24 -> 1 | K24: =G24 -> 9 | L24: =E24*H24 -> 10 | M24: =G24*F24 -> 90 | N24: =IF(M24>L24,K24,J24) -> 9 | O24: =IF(M24>L24,J24,K24) -> 1 | P24: =IF(M24>L24,M24,L24) -> 90 | Q24: =IF(M24>L24,L24,M24) -> 10 | R24: =P24-Q24 -> 80 | T24: 1 | U24: =R24/T24 -> 80 | Y24: 0 | Z24: =IF(Y24=0," + "," - ") -> + | AA24: =IF($Y24=1,N24,J24) -> 1 | AB24: =Z24 -> + | AC24: =IF($Y24=1,O24,K24) -> 9 | AD24: = | AE24: =IF($Y24=1,P24,L24) -> 10 | AF24: =Z24 -> + | AG24: =IF($Y24=1,Q24,M24) -> 90 | AH24: = | AI24: =IF($Y24=1,R24,L24+M24) -> 100 | AL24: =GCD(AI24,AI25) -> 100 | AM24: =AI24/AL24 -> 1 | AO24: =AM24 -> 1 | AP24: =IF(AND(AM24=1,AM25=1),"",AM25) ->  | AR24: =CONCATENATE(AI24,"/",AI25) -> 100/100 | AS24: = | AT24: =CONCATENATE(AM24,"/",AM25) -> 1/1
J25: =F24 -> 10 | K25: =H24 -> 10 | L25: =F24*H24 -> 100 | M25: =F24*H24 -> 100 | N25: =IF(M24>L24,K25,J25) -> 10 | O25: =IF(M24>L24,J25,K25) -> 10 | P25: =L25 -> 100 | Q25: =M25 -> 100 | R25: =Q25 -> 100 | T25: 1 | U25: =R25/T24 -> 100 | Y25: 0 | AA25: =IF($Y24=1,N25,J25) -> 10 | AC25: =IF($Y24=1,O25,K25) -> 10 | AE25: =IF($Y24=1,Q25,O25) -> 10 | AG25: =IF($Y24=1,Q25,M25) -> 100 | AI25: =IF($Y24=1,R25,P25) -> 100 | AM25: =AI25/AL24 -> 1
B26: 12 | C26: =IF($Y$1=3,"2478",IF($Y$1=2,"111","73")) -> 111 | D26: 27 | E26: =LOOKUP(D26,Matrix!$A$4:$B$2481) -> 1 | F26: =LOOKUP(D26,Matrix!$A$4:$C$2481) -> 5 | G26: =LOOKUP(D26,Matrix!$A$4:$D$2481) -> 4 | H26: =LOOKUP(D26,Matrix!$A$4:$E$2481) -> 5 | J26: =E26 -> 1 | K26: =G26 -> 4 | L26: =E26*H26 -> 5 | M26: =G26*F26 -> 20 | N26: =IF(M26>L26,K26,J26) -> 4 | O26: =IF(M26>L26,J26,K26) -> 1 | P26: =IF(M26>L26,M26,L26) -> 20 | Q26: =IF(M26>L26,L26,M26) -> 5 | R26: =P26-Q26 -> 15 | T26: 1 | U26: =R26/T26 -> 15 | Y26: 0 | Z26: =IF(Y26=0," + "," - ") -> + | AA26: =IF($Y26=1,N26,J26) -> 1 | AB26: =Z26 -> + | AC26: =IF($Y26=1,O26,K26) -> 4 | AD26: = | AE26: =IF($Y26=1,P26,L26) -> 5 | AF26: =Z26 -> + | AG26: =IF($Y26=1,Q26,M26) -> 20 | AH26: = | AI26: =IF($Y26=1,R26,L26+M26) -> 25 | AL26: =GCD(AI26,AI27) -> 25 | AM26: =AI26/AL26 -> 1 | AO26: =AM26 -> 1 | AP26: =IF(AND(AM26=1,AM27=1),"",AM27) ->  | AR26: =CONCATENATE(AI26,"/",AI27) -> 25/25 | AS26: = | AT26: =CONCATENATE(AM26,"/",AM27) -> 1/1
J27: =F26 -> 5 | K27: =H26 -> 5 | L27: =F26*H26 -> 25 | M27: =F26*H26 -> 25 | N27: =IF(M26>L26,K27,J27) -> 5 | O27: =IF(M26>L26,J27,K27) -> 5 | P27: =L27 -> 25 | Q27: =M27 -> 25 | R27: =Q27 -> 25 | T27: 1 | U27: =R27/T26 -> 25 | Y27: 1 | AA27: =IF($Y26=1,N27,J27) -> 5 | AC27: =IF($Y26=1,O27,K27) -> 5 | AE27: =IF($Y26=1,Q27,O27) -> 5 | AG27: =IF($Y26=1,Q27,M27) -> 25 | AI27: =IF($Y26=1,R27,P27) -> 25 | AM27: =AI27/AL26 -> 1
B28: 13 | C28: =IF($Y$1=3,"2478",IF($Y$1=2,"111","73")) -> 111 | D28: 12 | E28: =LOOKUP(D28,Matrix!$A$4:$B$2481) -> 1 | F28: =LOOKUP(D28,Matrix!$A$4:$C$2481) -> 4 | G28: =LOOKUP(D28,Matrix!$A$4:$D$2481) -> 1 | H28: =LOOKUP(D28,Matrix!$A$4:$E$2481) -> 8 | J28: =E28 -> 1 | K28: =G28 -> 1 | L28: =E28*H28 -> 8 | M28: =G28*F28 -> 4 | N28: =IF(M28>L28,K28,J28) -> 1 | O28: =IF(M28>L28,J28,K28) -> 1 | P28: =IF(M28>L28,M28,L28) -> 8 | Q28: =IF(M28>L28,L28,M28) -> 4 | R28: =P28-Q28 -> 4 | T28: 1 | U28: =R28/T28 -> 4 | Y28: 1 | Z28: =IF(Y28=0," + "," - ") -> - | AA28: =IF($Y28=1,N28,J28) -> 1 | AB28: =Z28 -> - | AC28: =IF($Y28=1,O28,K28) -> 1 | AD28: = | AE28: =IF($Y28=1,P28,L28) -> 8 | AF28: =Z28 -> - | AG28: =IF($Y28=1,Q28,M28) -> 4 | AH28: = | AI28: =IF($Y28=1,R28,L28+M28) -> 4 | AL28: =GCD(AI28,AI29) -> 4 | AM28: =AI28/AL28 -> 1 | AO28: =AM28 -> 1 | AP28: =IF(AND(AM28=1,AM29=1),"",AM29) -> 8 | AR28: =CONCATENATE(AI28,"/",AI29) -> 4/32 | AS28: = | AT28: =CONCATENATE(AM28,"/",AM29) -> 1/8
J29: =F28 -> 4 | K29: =H28 -> 8 | L29: =F28*H28 -> 32 | M29: =F28*H28 -> 32 | N29: =IF(M28>L28,K29,J29) -> 4 | O29: =IF(M28>L28,J29,K29) -> 8 | P29: =L29 -> 32 | Q29: =M29 -> 32 | R29: =Q29 -> 32 | T29: 1 | U29: =R29/T28 -> 32 | Y29: 1 | AA29: =IF($Y28=1,N29,J29) -> 4 | AC29: =IF($Y28=1,O29,K29) -> 8 | AE29: =IF($Y28=1,Q29,O29) -> 32 | AG29: =IF($Y28=1,Q29,M29) -> 32 | AI29: =IF($Y28=1,R29,P29) -> 32 | AM29: =AI29/AL28 -> 8
B30: 14 | C30: =IF($Y$1=3,"2478",IF($Y$1=2,"111","73")) -> 111 | D30: 25 | E30: =LOOKUP(D30,Matrix!$A$4:$B$2481) -> 1 | F30: =LOOKUP(D30,Matrix!$A$4:$C$2481) -> 5 | G30: =LOOKUP(D30,Matrix!$A$4:$D$2481) -> 2 | H30: =LOOKUP(D30,Matrix!$A$4:$E$2481) -> 5 | J30: =E30 -> 1 | K30: =G30 -> 2 | L30: =E30*H30 -> 5 | M30: =G30*F30 -> 10 | N30: =IF(M30>L30,K30,J30) -> 2 | O30: =IF(M30>L30,J30,K30) -> 1 | P30: =IF(M30>L30,M30,L30) -> 10 | Q30: =IF(M30>L30,L30,M30) -> 5 | R30: =P30-Q30 -> 5 | T30: 1 | U30: =R30/T30 -> 5 | Y30: 0 | Z30: =IF(Y30=0," + "," - ") -> + | AA30: =IF($Y30=1,N30,J30) -> 1 | AB30: =Z30 -> + | AC30: =IF($Y30=1,O30,K30) -> 2 | AD30: = | AE30: =IF($Y30=1,P30,L30) -> 5 | AF30: =Z30 -> + | AG30: =IF($Y30=1,Q30,M30) -> 10 | AH30: = | AI30: =IF($Y30=1,R30,L30+M30) -> 15 | AL30: =GCD(AI30,AI31) -> 5 | AM30: =AI30/AL30 -> 3 | AO30: =AM30 -> 3 | AP30: =IF(AND(AM30=1,AM31=1),"",AM31) -> 5 | AR30: =CONCATENATE(AI30,"/",AI31) -> 15/25 | AS30: = | AT30: =CONCATENATE(AM30,"/",AM31) -> 3/5
J31: =F30 -> 5 | K31: =H30 -> 5 | L31: =F30*H30 -> 25 | M31: =F30*H30 -> 25 | N31: =IF(M30>L30,K31,J31) -> 5 | O31: =IF(M30>L30,J31,K31) -> 5 | P31: =L31 -> 25 | Q31: =M31 -> 25 | R31: =Q31 -> 25 | T31: 1 | U31: =R31/T30 -> 25 | Y31: 1 | AA31: =IF($Y30=1,N31,J31) -> 5 | AC31: =IF($Y30=1,O31,K31) -> 5 | AE31: =IF($Y30=1,Q31,O31) -> 5 | AG31: =IF($Y30=1,Q31,M31) -> 25 | AI31: =IF($Y30=1,R31,P31) -> 25 | AM31: =AI31/AL30 -> 5
B32: 15 | C32: =IF($Y$1=3,"2478",IF($Y$1=2,"111","73")) -> 111 | D32: 96 | E32: =LOOKUP(D32,Matrix!$A$4:$B$2481) -> 1 | F32: =LOOKUP(D32,Matrix!$A$4:$C$2481) -> 6 | G32: =LOOKUP(D32,Matrix!$A$4:$D$2481) -> 1 | H32: =LOOKUP(D32,Matrix!$A$4:$E$2481) -> 4 | J32: =E32 -> 1 | K32: =G32 -> 1 | L32: =E32*H32 -> 4 | M32: =G32*F32 -> 6 | N32: =IF(M32>L32,K32,J32) -> 1 | O32: =IF(M32>L32,J32,K32) -> 1 | P32: =IF(M32>L32,M32,L32) -> 6 | Q32: =IF(M32>L32,L32,M32) -> 4 | R32: =P32-Q32 -> 2 | T32: 1 | U32: =R32/T32 -> 2 | Y32: 0 | Z32: =IF(Y32=0," + "," - ") -> + | AA32: =IF($Y32=1,N32,J32) -> 1 | AB32: =Z32 -> + | AC32: =IF($Y32=1,O32,K32) -> 1 | AD32: = | AE32: =IF($Y32=1,P32,L32) -> 4 | AF32: =Z32 -> + | AG32: =IF($Y32=1,Q32,M32) -> 6 | AH32: = | AI32: =IF($Y32=1,R32,L32+M32) -> 10 | AL32: =GCD(AI32,AI33) -> 2 | AM32: =AI32/AL32 -> 5 | AO32: =AM32 -> 5 | AP32: =IF(AND(AM32=1,AM33=1),"",AM33) -> 12 | AR32: =CONCATENATE(AI32,"/",AI33) -> 10/24 | AS32: = | AT32: =CONCATENATE(AM32,"/",AM33) -> 5/12
J33: =F32 -> 6 | K33: =H32 -> 4 | L33: =F32*H32 -> 24 | M33: =F32*H32 -> 24 | N33: =IF(M32>L32,K33,J33) -> 4 | O33: =IF(M32>L32,J33,K33) -> 6 | P33: =L33 -> 24 | Q33: =M33 -> 24 | R33: =Q33 -> 24 | T33: 1 | U33: =R33/T32 -> 24 | Y33: 1 | AA33: =IF($Y32=1,N33,J33) -> 6 | AC33: =IF($Y32=1,O33,K33) -> 4 | AE33: =IF($Y32=1,Q33,O33) -> 6 | AG33: =IF($Y32=1,Q33,M33) -> 24 | AI33: =IF($Y32=1,R33,P33) -> 24 | AM33: =AI33/AL32 -> 12
B34: 16 | C34: =IF($Y$1=3,"2478",IF($Y$1=2,"111","73")) -> 111 | D34: 97 | E34: =LOOKUP(D34,Matrix!$A$4:$B$2481) -> 1 | F34: =LOOKUP(D34,Matrix!$A$4:$C$2481) -> 6 | G34: =LOOKUP(D34,Matrix!$A$4:$D$2481) -> 3 | H34: =LOOKUP(D34,Matrix!$A$4:$E$2481) -> 4 | J34: =E34 -> 1 | K34: =G34 -> 3 | L34: =E34*H34 -> 4 | M34: =G34*F34 -> 18 | N34: =IF(M34>L34,K34,J34) -> 3 | O34: =IF(M34>L34,J34,K34) -> 1 | P34: =IF(M34>L34,M34,L34) -> 18 | Q34: =IF(M34>L34,L34,M34) -> 4 | R34: =P34-Q34 -> 14 | T34: 1 | U34: =R34/T34 -> 14 | Y34: 1 | Z34: =IF(Y34=0," + "," - ") -> - | AA34: =IF($Y34=1,N34,J34) -> 3 | AB34: =Z34 -> - | AC34: =IF($Y34=1,O34,K34) -> 1 | AD34: = | AE34: =IF($Y34=1,P34,L34) -> 18 | AF34: =Z34 -> - | AG34: =IF($Y34=1,Q34,M34) -> 4 | AH34: = | AI34: =IF($Y34=1,R34,L34+M34) -> 14 | AL34: =GCD(AI34,AI35) -> 2 | AM34: =AI34/AL34 -> 7 | AO34: =AM34 -> 7 | AP34: =IF(AND(AM34=1,AM35=1),"",AM35) -> 12 | AR34: =CONCATENATE(AI34,"/",AI35) -> 14/24 | AS34: = | AT34: =CONCATENATE(AM34,"/",AM35) -> 7/12
J35: =F34 -> 6 | K35: =H34 -> 4 | L35: =F34*H34 -> 24 | M35: =F34*H34 -> 24 | N35: =IF(M34>L34,K35,J35) -> 4 | O35: =IF(M34>L34,J35,K35) -> 6 | P35: =L35 -> 24 | Q35: =M35 -> 24 | R35: =Q35 -> 24 | T35: 1 | U35: =R35/T34 -> 24 | Y35: 0 | AA35: =IF($Y34=1,N35,J35) -> 4 | AC35: =IF($Y34=1,O35,K35) -> 6 | AE35: =IF($Y34=1,Q35,O35) -> 24 | AG35: =IF($Y34=1,Q35,M35) -> 24 | AI35: =IF($Y34=1,R35,P35) -> 24 | AM35: =AI35/AL34 -> 12
B36: 17 | C36: =IF($Y$1=3,"2478",IF($Y$1=2,"111","73")) -> 111 | D36: 48 | E36: =LOOKUP(D36,Matrix!$A$4:$B$2481) -> 1 | F36: =LOOKUP(D36,Matrix!$A$4:$C$2481) -> 10 | G36: =LOOKUP(D36,Matrix!$A$4:$D$2481) -> 2 | H36: =LOOKUP(D36,Matrix!$A$4:$E$2481) -> 5 | J36: =E36 -> 1 | K36: =G36 -> 2 | L36: =E36*H36 -> 5 | M36: =G36*F36 -> 20 | N36: =IF(M36>L36,K36,J36) -> 2 | O36: =IF(M36>L36,J36,K36) -> 1 | P36: =IF(M36>L36,M36,L36) -> 20 | Q36: =IF(M36>L36,L36,M36) -> 5 | R36: =P36-Q36 -> 15 | T36: 1 | U36: =R36/T36 -> 15 | Y36: =INT(2*RAND()) -> 0 | Z36: =IF(Y36=0," + "," - ") -> + | AA36: =IF($Y36=1,N36,J36) -> 1 | AB36: =Z36 -> + | AC36: =IF($Y36=1,O36,K36) -> 2 | AD36: = | AE36: =IF($Y36=1,P36,L36) -> 5 | AF36: =Z36 -> + | AG36: =IF($Y36=1,Q36,M36) -> 20 | AH36: = | AI36: =IF($Y36=1,R36,L36+M36) -> 25 | AL36: =GCD(AI36,AI37) -> 25 | AM36: =AI36/AL36 -> 1 | AO36: =AM36 -> 1 | AP36: =IF(AND(AM36=1,AM37=1),"",AM37) -> 2 | AR36: =CONCATENATE(AI36,"/",AI37) -> 25/50 | AS36: = | AT36: =CONCATENATE(AM36,"/",AM37) -> 1/2
J37: =F36 -> 10 | K37: =H36 -> 5 | L37: =F36*H36 -> 50 | M37: =F36*H36 -> 50 | N37: =IF(M36>L36,K37,J37) -> 5 | O37: =IF(M36>L36,J37,K37) -> 10 | P37: =L37 -> 50 | Q37: =M37 -> 50 | R37: =Q37 -> 50 | T37: 1 | U37: =R37/T36 -> 50 | Y37: 0 | AA37: =IF($Y36=1,N37,J37) -> 10 | AC37: =IF($Y36=1,O37,K37) -> 5 | AE37: =IF($Y36=1,Q37,O37) -> 10 | AG37: =IF($Y36=1,Q37,M37) -> 50 | AI37: =IF($Y36=1,R37,P37) -> 50 | AM37: =AI37/AL36 -> 2
B38: 18 | C38: =IF($Y$1=3,"2478",IF($Y$1=2,"111","73")) -> 111 | D38: 53 | E38: =LOOKUP(D38,Matrix!$A$4:$B$2481) -> 1 | F38: =LOOKUP(D38,Matrix!$A$4:$C$2481) -> 10 | G38: =LOOKUP(D38,Matrix!$A$4:$D$2481) -> 5 | H38: =LOOKUP(D38,Matrix!$A$4:$E$2481) -> 8 | J38: =E38 -> 1 | K38: =G38 -> 5 | L38: =E38*H38 -> 8 | M38: =G38*F38 -> 50 | N38: =IF(M38>L38,K38,J38) -> 5 | O38: =IF(M38>L38,J38,K38) -> 1 | P38: =IF(M38>L38,M38,L38) -> 50 | Q38: =IF(M38>L38,L38,M38) -> 8 | R38: =P38-Q38 -> 42 | T38: 1 | U38: =R38/T38 -> 42 | Y38: 1 | Z38: =IF(Y38=0," + "," - ") -> - | AA38: =IF($Y38=1,N38,J38) -> 5 | AB38: =Z38 -> - | AC38: =IF($Y38=1,O38,K38) -> 1 | AD38: = | AE38: =IF($Y38=1,P38,L38) -> 50 | AF38: =Z38 -> - | AG38: =IF($Y38=1,Q38,M38) -> 8 | AH38: = | AI38: =IF($Y38=1,R38,L38+M38) -> 42 | AL38: =GCD(AI38,AI39) -> 2 | AM38: =AI38/AL38 -> 21 | AO38: =AM38 -> 21 | AP38: =IF(AND(AM38=1,AM39=1),"",AM39) -> 40 | AR38: =CONCATENATE(AI38,"/",AI39) -> 42/80 | AS38: = | AT38: =CONCATENATE(AM38,"/",AM39) -> 21/40
J39: =F38 -> 10 | K39: =H38 -> 8 | L39: =F38*H38 -> 80 | M39: =F38*H38 -> 80 | N39: =IF(M38>L38,K39,J39) -> 8 | O39: =IF(M38>L38,J39,K39) -> 10 | P39: =L39 -> 80 | Q39: =M39 -> 80 | R39: =Q39 -> 80 | T39: 1 | U39: =R39/T38 -> 80 | Y39: 0 | AA39: =IF($Y38=1,N39,J39) -> 8 | AC39: =IF($Y38=1,O39,K39) -> 10 | AE39: =IF($Y38=1,Q39,O39) -> 80 | AG39: =IF($Y38=1,Q39,M39) -> 80 | AI39: =IF($Y38=1,R39,P39) -> 80 | AM39: =AI39/AL38 -> 40
B40: 19 | C40: =IF($Y$1=3,"2478",IF($Y$1=2,"111","73")) -> 111 | D40: 61 | E40: =LOOKUP(D40,Matrix!$A$4:$B$2481) -> 3 | F40: =LOOKUP(D40,Matrix!$A$4:$C$2481) -> 10 | G40: =LOOKUP(D40,Matrix!$A$4:$D$2481) -> 2 | H40: =LOOKUP(D40,Matrix!$A$4:$E$2481) -> 5 | J40: =E40 -> 3 | K40: =G40 -> 2 | L40: =E40*H40 -> 15 | M40: =G40*F40 -> 20 | N40: =IF(M40>L40,K40,J40) -> 2 | O40: =IF(M40>L40,J40,K40) -> 3 | P40: =IF(M40>L40,M40,L40) -> 20 | Q40: =IF(M40>L40,L40,M40) -> 15 | R40: =P40-Q40 -> 5 | T40: 1 | U40: =R40/T40 -> 5 | Y40: 1 | Z40: =IF(Y40=0," + "," - ") -> - | AA40: =IF($Y40=1,N40,J40) -> 2 | AB40: =Z40 -> - | AC40: =IF($Y40=1,O40,K40) -> 3 | AD40: = | AE40: =IF($Y40=1,P40,L40) -> 20 | AF40: =Z40 -> - | AG40: =IF($Y40=1,Q40,M40) -> 15 | AH40: = | AI40: =IF($Y40=1,R40,L40+M40) -> 5 | AL40: =GCD(AI40,AI41) -> 5 | AM40: =AI40/AL40 -> 1 | AO40: =AM40 -> 1 | AP40: =IF(AND(AM40=1,AM41=1),"",AM41) -> 10 | AR40: =CONCATENATE(AI40,"/",AI41) -> 5/50 | AS40: = | AT40: =CONCATENATE(AM40,"/",AM41) -> 1/10
J41: =F40 -> 10 | K41: =H40 -> 5 | L41: =F40*H40 -> 50 | M41: =F40*H40 -> 50 | N41: =IF(M40>L40,K41,J41) -> 5 | O41: =IF(M40>L40,J41,K41) -> 10 | P41: =L41 -> 50 | Q41: =M41 -> 50 | R41: =Q41 -> 50 | T41: 1 | U41: =R41/T40 -> 50 | Y41: 1 | AA41: =IF($Y40=1,N41,J41) -> 5 | AC41: =IF($Y40=1,O41,K41) -> 10 | AE41: =IF($Y40=1,Q41,O41) -> 50 | AG41: =IF($Y40=1,Q41,M41) -> 50 | AI41: =IF($Y40=1,R41,P41) -> 50 | AM41: =AI41/AL40 -> 10
B42: 20 | C42: =IF($Y$1=3,"2478",IF($Y$1=2,"111","73")) -> 111 | D42: 41 | E42: =LOOKUP(D42,Matrix!$A$4:$B$2481) -> 4 | F42: =LOOKUP(D42,Matrix!$A$4:$C$2481) -> 5 | G42: =LOOKUP(D42,Matrix!$A$4:$D$2481) -> 1 | H42: =LOOKUP(D42,Matrix!$A$4:$E$2481) -> 5 | J42: =E42 -> 4 | K42: =G42 -> 1 | L42: =E42*H42 -> 20 | M42: =G42*F42 -> 5 | N42: =IF(M42>L42,K42,J42) -> 4 | O42: =IF(M42>L42,J42,K42) -> 1 | P42: =IF(M42>L42,M42,L42) -> 20 | Q42: =IF(M42>L42,L42,M42) -> 5 | R42: =P42-Q42 -> 15 | T42: 1 | U42: =R42/T42 -> 15 | Y42: 0 | Z42: =IF(Y42=0," + "," - ") -> + | AA42: =IF($Y42=1,N42,J42) -> 4 | AB42: =Z42 -> + | AC42: =IF($Y42=1,O42,K42) -> 1 | AD42: = | AE42: =IF($Y42=1,P42,L42) -> 20 | AF42: =Z42 -> + | AG42: =IF($Y42=1,Q42,M42) -> 5 | AH42: = | AI42: =IF($Y42=1,R42,L42+M42) -> 25 | AL42: =GCD(AI42,AI43) -> 25 | AM42: =AI42/AL42 -> 1 | AO42: =AM42 -> 1 | AP42: =IF(AND(AM42=1,AM43=1),"",AM43) ->  | AR42: =CONCATENATE(AI42,"/",AI43) -> 25/25 | AS42: = | AT42: =CONCATENATE(AM42,"/",AM43) -> 1/1
J43: =F42 -> 5 | K43: =H42 -> 5 | L43: =F42*H42 -> 25 | M43: =F42*H42 -> 25 | N43: =IF(M42>L42,K43,J43) -> 5 | O43: =IF(M42>L42,J43,K43) -> 5 | P43: =L43 -> 25 | Q43: =M43 -> 25 | R43: =Q43 -> 25 | T43: 1 | U43: =R43/T42 -> 25 | Y43: 1 | AA43: =IF($Y42=1,N43,J43) -> 5 | AC43: =IF($Y42=1,O43,K43) -> 5 | AE43: =IF($Y42=1,Q43,O43) -> 5 | AG43: =IF($Y42=1,Q43,M43) -> 25 | AI43: =IF($Y42=1,R43,P43) -> 25 | AM43: =AI43/AL42 -> 1
B44: 21 | C44: =IF($Y$1=3,"2478",IF($Y$1=2,"111","73")) -> 111 | D44: 32 | E44: =LOOKUP(D44,Matrix!$A$4:$B$2481) -> 1 | F44: =LOOKUP(D44,Matrix!$A$4:$C$2481) -> 5 | G44: =LOOKUP(D44,Matrix!$A$4:$D$2481) -> 3 | H44: =LOOKUP(D44,Matrix!$A$4:$E$2481) -> 10 | J44: =E44 -> 1 | K44: =G44 -> 3 | L44: =E44*H44 -> 10 | M44: =G44*F44 -> 15 | N44: =IF(M44>L44,K44,J44) -> 3 | O44: =IF(M44>L44,J44,K44) -> 1 | P44: =IF(M44>L44,M44,L44) -> 15 | Q44: =IF(M44>L44,L44,M44) -> 10 | R44: =P44-Q44 -> 5 | T44: 1 | U44: =R44/T44 -> 5 | Y44: 1 | Z44: =IF(Y44=0," + "," - ") -> - | AA44: =IF($Y44=1,N44,J44) -> 3 | AB44: =Z44 -> - | AC44: =IF($Y44=1,O44,K44) -> 1 | AD44: = | AE44: =IF($Y44=1,P44,L44) -> 15 | AF44: =Z44 -> - | AG44: =IF($Y44=1,Q44,M44) -> 10 | AH44: = | AI44: =IF($Y44=1,R44,L44+M44) -> 5 | AL44: =GCD(AI44,AI45) -> 5 | AM44: =AI44/AL44 -> 1 | AO44: =AM44 -> 1 | AP44: =IF(AND(AM44=1,AM45=1),"",AM45) -> 10 | AR44: =CONCATENATE(AI44,"/",AI45) -> 5/50 | AS44: = | AT44: =CONCATENATE(AM44,"/",AM45) -> 1/10
J45: =F44 -> 5 | K45: =H44 -> 10 | L45: =F44*H44 -> 50 | M45: =F44*H44 -> 50 | N45: =IF(M44>L44,K45,J45) -> 10 | O45: =IF(M44>L44,J45,K45) -> 5 | P45: =L45 -> 50 | Q45: =M45 -> 50 | R45: =Q45 -> 50 | T45: 1 | U45: =R45/T44 -> 50 | Y45: 1 | AA45: =IF($Y44=1,N45,J45) -> 10 | AC45: =IF($Y44=1,O45,K45) -> 5 | AE45: =IF($Y44=1,Q45,O45) -> 50 | AG45: =IF($Y44=1,Q45,M45) -> 50 | AI45: =IF($Y44=1,R45,P45) -> 50 | AM45: =AI45/AL44 -> 10
B46: 22 | C46: =IF($Y$1=3,"2478",IF($Y$1=2,"111","73")) -> 111 | D46: 73 | E46: =LOOKUP(D46,Matrix!$A$4:$B$2481) -> 9 | F46: =LOOKUP(D46,Matrix!$A$4:$C$2481) -> 10 | G46: =LOOKUP(D46,Matrix!$A$4:$D$2481) -> 1 | H46: =LOOKUP(D46,Matrix!$A$4:$E$2481) -> 10 | J46: =E46 -> 9 | K46: =G46 -> 1 | L46: =E46*H46 -> 90 | M46: =G46*F46 -> 10 | N46: =IF(M46>L46,K46,J46) -> 9 | O46: =IF(M46>L46,J46,K46) -> 1 | P46: =IF(M46>L46,M46,L46) -> 90 | Q46: =IF(M46>L46,L46,M46) -> 10 | R46: =P46-Q46 -> 80 | T46: 1 | U46: =R46/T46 -> 80 | Y46: 1 | Z46: =IF(Y46=0," + "," - ") -> - | AA46: =IF($Y46=1,N46,J46) -> 9 | AB46: =Z46 -> - | AC46: =IF($Y46=1,O46,K46) -> 1 | AD46: = | AE46: =IF($Y46=1,P46,L46) -> 90 | AF46: =Z46 -> - | AG46: =IF($Y46=1,Q46,M46) -> 10 | AH46: = | AI46: =IF($Y46=1,R46,L46+M46) -> 80 | AL46: =GCD(AI46,AI47) -> 20 | AM46: =AI46/AL46 -> 4 | AO46: =AM46 -> 4 | AP46: =IF(AND(AM46=1,AM47=1),"",AM47) -> 5 | AR46: =CONCATENATE(AI46,"/",AI47) -> 80/100 | AS46: = | AT46: =CONCATENATE(AM46,"/",AM47) -> 4/5
J47: =F46 -> 10 | K47: =H46 -> 10 | L47: =F46*H46 -> 100 | M47: =F46*H46 -> 100 | N47: =IF(M46>L46,K47,J47) -> 10 | O47: =IF(M46>L46,J47,K47) -> 10 | P47: =L47 -> 100 | Q47: =M47 -> 100 | R47: =Q47 -> 100 | T47: 1 | U47: =R47/T46 -> 100 | Y47: 1 | AA47: =IF($Y46=1,N47,J47) -> 10 | AC47: =IF($Y46=1,O47,K47) -> 10 | AE47: =IF($Y46=1,Q47,O47) -> 100 | AG47: =IF($Y46=1,Q47,M47) -> 100 | AI47: =IF($Y46=1,R47,P47) -> 100 | AM47: =AI47/AL46 -> 5
B48: 23 | C48: =IF($Y$1=3,"2478",IF($Y$1=2,"111","73")) -> 111 | D48: 50 | E48: =LOOKUP(D48,Matrix!$A$4:$B$2481) -> 1 | F48: =LOOKUP(D48,Matrix!$A$4:$C$2481) -> 10 | G48: =LOOKUP(D48,Matrix!$A$4:$D$2481) -> 4 | H48: =LOOKUP(D48,Matrix!$A$4:$E$2481) -> 5 | J48: =E48 -> 1 | K48: =G48 -> 4 | L48: =E48*H48 -> 5 | M48: =G48*F48 -> 40 | N48: =IF(M48>L48,K48,J48) -> 4 | O48: =IF(M48>L48,J48,K48) -> 1 | P48: =IF(M48>L48,M48,L48) -> 40 | Q48: =IF(M48>L48,L48,M48) -> 5 | R48: =P48-Q48 -> 35 | T48: 1 | U48: =R48/T48 -> 35 | Y48: 0 | Z48: =IF(Y48=0," + "," - ") -> + | AA48: =IF($Y48=1,N48,J48) -> 1 | AB48: =Z48 -> + | AC48: =IF($Y48=1,O48,K48) -> 4 | AD48: = | AE48: =IF($Y48=1,P48,L48) -> 5 | AF48: =Z48 -> + | AG48: =IF($Y48=1,Q48,M48) -> 40 | AH48: = | AI48: =IF($Y48=1,R48,L48+M48) -> 45 | AL48: =GCD(AI48,AI49) -> 5 | AM48: =AI48/AL48 -> 9 | AO48: =AM48 -> 9 | AP48: =IF(AND(AM48=1,AM49=1),"",AM49) -> 10 | AR48: =CONCATENATE(AI48,"/",AI49) -> 45/50 | AS48: = | AT48: =CONCATENATE(AM48,"/",AM49) -> 9/10
J49: =F48 -> 10 | K49: =H48 -> 5 | L49: =F48*H48 -> 50 | M49: =F48*H48 -> 50 | N49: =IF(M48>L48,K49,J49) -> 5 | O49: =IF(M48>L48,J49,K49) -> 10 | P49: =L49 -> 50 | Q49: =M49 -> 50 | R49: =Q49 -> 50 | T49: 1 | U49: =R49/T48 -> 50 | Y49: 0 | AA49: =IF($Y48=1,N49,J49) -> 10 | AC49: =IF($Y48=1,O49,K49) -> 5 | AE49: =IF($Y48=1,Q49,O49) -> 10 | AG49: =IF($Y48=1,Q49,M49) -> 50 | AI49: =IF($Y48=1,R49,P49) -> 50 | AM49: =AI49/AL48 -> 10
B50: 24 | C50: =IF($Y$1=3,"2478",IF($Y$1=2,"111","73")) -> 111 | D50: 15 | E50: =LOOKUP(D50,Matrix!$A$4:$B$2481) -> 1 | F50: =LOOKUP(D50,Matrix!$A$4:$C$2481) -> 4 | G50: =LOOKUP(D50,Matrix!$A$4:$D$2481) -> 1 | H50: =LOOKUP(D50,Matrix!$A$4:$E$2481) -> 10 | J50: =E50 -> 1 | K50: =G50 -> 1 | L50: =E50*H50 -> 10 | M50: =G50*F50 -> 4 | N50: =IF(M50>L50,K50,J50) -> 1 | O50: =IF(M50>L50,J50,K50) -> 1 | P50: =IF(M50>L50,M50,L50) -> 10 | Q50: =IF(M50>L50,L50,M50) -> 4 | R50: =P50-Q50 -> 6 | T50: 1 | U50: =R50/T50 -> 6 | Y50: 0 | Z50: =IF(Y50=0," + "," - ") -> + | AA50: =IF($Y50=1,N50,J50) -> 1 | AB50: =Z50 -> + | AC50: =IF($Y50=1,O50,K50) -> 1 | AD50: = | AE50: =IF($Y50=1,P50,L50) -> 10 | AF50: =Z50 -> + | AG50: =IF($Y50=1,Q50,M50) -> 4 | AH50: = | AI50: =IF($Y50=1,R50,L50+M50) -> 14 | AL50: =GCD(AI50,AI51) -> 2 | AM50: =AI50/AL50 -> 7 | AO50: =AM50 -> 7 | AP50: =IF(AND(AM50=1,AM51=1),"",AM51) -> 20 | AR50: =CONCATENATE(AI50,"/",AI51) -> 14/40 | AS50: = | AT50: =CONCATENATE(AM50,"/",AM51) -> 7/20
J51: =F50 -> 4 | K51: =H50 -> 10 | L51: =F50*H50 -> 40 | M51: =F50*H50 -> 40 | N51: =IF(M50>L50,K51,J51) -> 4 | O51: =IF(M50>L50,J51,K51) -> 10 | P51: =L51 -> 40 | Q51: =M51 -> 40 | R51: =Q51 -> 40 | T51: 1 | U51: =R51/T50 -> 40 | Y51: 1 | AA51: =IF($Y50=1,N51,J51) -> 4 | AC51: =IF($Y50=1,O51,K51) -> 10 | AE51: =IF($Y50=1,Q51,O51) -> 10 | AG51: =IF($Y50=1,Q51,M51) -> 40 | AI51: =IF($Y50=1,R51,P51) -> 40 | AM51: =AI51/AL50 -> 20
B52: 25 | C52: =IF($Y$1=3,"2478",IF($Y$1=2,"111","73")) -> 111 | D52: 4 | E52: =LOOKUP(D52,Matrix!$A$4:$B$2481) -> 1 | F52: =LOOKUP(D52,Matrix!$A$4:$C$2481) -> 2 | G52: =LOOKUP(D52,Matrix!$A$4:$D$2481) -> 1 | H52: =LOOKUP(D52,Matrix!$A$4:$E$2481) -> 8 | J52: =E52 -> 1 | K52: =G52 -> 1 | L52: =E52*H52 -> 8 | M52: =G52*F52 -> 2 | N52: =IF(M52>L52,K52,J52) -> 1 | O52: =IF(M52>L52,J52,K52) -> 1 | P52: =IF(M52>L52,M52,L52) -> 8 | Q52: =IF(M52>L52,L52,M52) -> 2 | R52: =P52-Q52 -> 6 | T52: 1 | U52: =R52/T52 -> 6 | Y52: 1 | Z52: =IF(Y52=0," + "," - ") -> - | AA52: =IF($Y52=1,N52,J52) -> 1 | AB52: =Z52 -> - | AC52: =IF($Y52=1,O52,K52) -> 1 | AD52: = | AE52: =IF($Y52=1,P52,L52) -> 8 | AF52: =Z52 -> - | AG52: =IF($Y52=1,Q52,M52) -> 2 | AH52: = | AI52: =IF($Y52=1,R52,L52+M52) -> 6 | AL52: =GCD(AI52,AI53) -> 2 | AM52: =AI52/AL52 -> 3 | AO52: =AM52 -> 3 | AP52: =IF(AND(AM52=1,AM53=1),"",AM53) -> 8 | AR52: =CONCATENATE(AI52,"/",AI53) -> 6/16 | AS52: = | AT52: =CONCATENATE(AM52,"/",AM53) -> 3/8
J53: =F52 -> 2 | K53: =H52 -> 8 | L53: =F52*H52 -> 16 | M53: =F52*H52 -> 16 | N53: =IF(M52>L52,K53,J53) -> 2 | O53: =IF(M52>L52,J53,K53) -> 8 | P53: =L53 -> 16 | Q53: =M53 -> 16 | R53: =Q53 -> 16 | T53: 1 | U53: =R53/T52 -> 16 | Y53: 0 | AA53: =IF($Y52=1,N53,J53) -> 2 | AC53: =IF($Y52=1,O53,K53) -> 8 | AE53: =IF($Y52=1,Q53,O53) -> 16 | AG53: =IF($Y52=1,Q53,M53) -> 16 | AI53: =IF($Y52=1,R53,P53) -> 16 | AM53: =AI53/AL52 -> 8
T54: 1 | Y54: 1
T55: 1 | Y55: 0
T56: 1 | Y56: 1
T57: 1 | Y57: 0
T58: 1 | Y58: 0
T59: 1 | Y59: 1
T60: 1 | Y60: 0
T61: 1 | Y61: 1
T62: 1 | Y62: 0

Sheet Matrix (hidden)
B1: a/b + c/d
B2: a | C2: b | D2: c | E2: d
B3: 2 -4 - 5 - 8 -10
A4: 1 | B4: 1 | C4: 2 | D4: 1 | E4: 4 | F4: =B4/C4+D4/E4 -> 0.75
A5: 2 | B5: 1 | C5: 2 | D5: 1 | E5: 5 | F5: 0.7
A6: 3 | B6: 1 | C6: 2 | D6: 2 | E6: 5 | F6: 0.9
A7: 4 | B7: 1 | C7: 2 | D7: 1 | E7: 8 | F7: 0.625
A8: 5 | B8: 1 | C8: 2 | D8: 3 | E8: 8 | F8: 0.875
A9: 6 | B9: 1 | C9: 2 | D9: 1 | E9: 10 | F9: 0.6
A10: 7 | B10: 1 | C10: 2 | D10: 3 | E10: 10 | F10: 0.8
A11: 8 | B11: 1 | C11: 4 | D11: 1 | E11: 2 | F11: 0.75
A12: 9 | B12: 1 | C12: 4 | D12: 3 | E12: 4 | F12: 1
A13: 10 | B13: 1 | C13: 4 | D13: 1 | E13: 5 | F13: 0.45
A14: 11 | B14: 1 | C14: 4 | D14: 2 | E14: 5 | F14: 0.65
A15: 12 | B15: 1 | C15: 4 | D15: 1 | E15: 8 | F15: 0.375
A16: 13 | B16: 1 | C16: 4 | D16: 3 | E16: 8 | F16: 0.625
A17: 14 | B17: 1 | C17: 4 | D17: 5 | E17: 8 | F17: 0.875
A18: 15 | B18: 1 | C18: 4 | D18: 1 | E18: 10 | F18: 0.35
A19: 16 | B19: 1 | C19: 4 | D19: 3 | E19: 10 | F19: 0.55
A20: 17 | B20: 1 | C20: 4 | D20: 7 | E20: 10 | F20: 0.95
A21: 18 | B21: 3 | C21: 4 | D21: 1 | E21: 4 | F21: 1
A22: 19 | B22: 3 | C22: 4 | D22: 1 | E22: 5 | F22: 0.95
A23: 20 | B23: 3 | C23: 4 | D23: 1 | E23: 8 | F23: 0.875
A24: 21 | B24: 3 | C24: 4 | D24: 1 | E24: 10 | F24: 0.85
A25: 22 | B25: 1 | C25: 5 | D25: 1 | E25: 2 | F25: 0.7
A26: 23 | B26: 1 | C26: 5 | D26: 1 | E26: 4 | F26: 0.45
A27: 24 | B27: 1 | C27: 5 | D27: 3 | E27: 4 | F27: 0.95
A28: 25 | B28: 1 | C28: 5 | D28: 2 | E28: 5 | F28: 0.6
A29: 26 | B29: 1 | C29: 5 | D29: 3 | E29: 5 | F29: 0.8
A30: 27 | B30: 1 | C30: 5 | D30: 4 | E30: 5 | F30: 1
A31: 28 | B31: 1 | C31: 5 | D31: 1 | E31: 8 | F31: 0.325
A32: 29 | B32: 1 | C32: 5 | D32: 3 | E32: 8 | F32: 0.575
A33: 30 | B33: 1 | C33: 5 | D33: 5 | E33: 8 | F33: 0.825
A34: 31 | B34: 1 | C34: 5 | D34: 1 | E34: 10 | F34: 0.3
A35: 32 | B35: 1 | C35: 5 | D35: 3 | E35: 10 | F35: 0.5
A36: 33 | B36: 1 | C36: 5 | D36: 7 | E36: 10 | F36: 0.9
A37: 34 | B37: 3 | C37: 5 | D37: 1 | E37: 4 | F37: 0.85
A38: 35 | B38: 3 | C38: 5 | D38: 1 | E38: 5 | F38: 0.8
A39: 36 | B39: 3 | C39: 5 | D39: 2 | E39: 5 | F39: 1
A40: 37 | B40: 3 | C40: 5 | D40: 1 | E40: 8 | F40: 0.725
A41: 38 | B41: 3 | C41: 5 | D41: 3 | E41: 8 | F41: 0.975
A42: 39 | B42: 3 | C42: 5 | D42: 1 | E42: 10 | F42: 0.7
A43: 40 | B43: 3 | C43: 5 | D43: 3 | E43: 10 | F43: 0.9
A44: 41 | B44: 4 | C44: 5 | D44: 1 | E44: 5 | F44: 1
A45: 42 | B45: 4 | C45: 5 | D45: 1 | E45: 8 | F45: 0.925
A46: 43 | B46: 4 | C46: 5 | D46: 1 | E46: 10 | F46: 0.9
A47: 44 | B47: 1 | C47: 10 | D47: 1 | E47: 2 | F47: 0.6
A48: 45 | B48: 1 | C48: 10 | D48: 1 | E48: 4 | F48: 0.35
A49: 46 | B49: 1 | C49: 10 | D49: 3 | E49: 4 | F49: 0.85
A50: 47 | B50: 1 | C50: 10 | D50: 1 | E50: 5 | F50: 0.3
A51: 48 | B51: 1 | C51: 10 | D51: 2 | E51: 5 | F51: 0.5
A52: 49 | B52: 1 | C52: 10 | D52: 3 | E52: 5 | F52: 0.7
A53: 50 | B53: 1 | C53: 10 | D53: 4 | E53: 5 | F53: 0.9
A54: 51 | B54: 1 | C54: 10 | D54: 1 | E54: 8 | F54: 0.225
A55: 52 | B55: 1 | C55: 10 | D55: 3 | E55: 8 | F55: 0.475
A56: 53 | B56: 1 | C56: 10 | D56: 5 | E56: 8 | F56: 0.725
A57: 54 | B57: 1 | C57: 10 | D57: 7 | E57: 8 | F57: 0.975
A58: 55 | B58: 1 | C58: 10 | D58: 3 | E58: 10 | F58: 0.4
A59: 56 | B59: 1 | C59: 10 | D59: 7 | E59: 10 | F59: 0.8
A60: 57 | B60: 1 | C60: 10 | D60: 9 | E60: 10 | F60: 1
A61: 58 | B61: 3 | C61: 10 | D61: 1 | E61: 2 | F61: 0.8
A62: 59 | B62: 3 | C62: 10 | D62: 1 | E62: 4 | F62: 0.55
A63: 60 | B63: 3 | C63: 10 | D63: 1 | E63: 5 | F63: 0.5
A64: 61 | B64: 3 | C64: 10 | D64: 2 | E64: 5 | F64: =B64/C64+D64/E64 -> 0.7
A65: 62 | B65: 3 | C65: 10 | D65: 3 | E65: 5 | F65: 0.9
A66: 63 | B66: 3 | C66: 10 | D66: 1 | E66: 8 | F66: 0.425
A67: 64 | B67: 3 | C67: 10 | D67: 3 | E67: 8 | F67: 0.675
A68: 65 | B68: 3 | C68: 10 | D68: 5 | E68: 8 | F68: 0.925
A69: 66 | B69: 3 | C69: 10 | D69: 1 | E69: 10 | F69: 0.4
A70: 67 | B70: 3 | C70: 10 | D70: 7 | E70: 10 | F70: 1
A71: 68 | B71: 7 | C71: 10 | D71: 1 | E71: 4 | F71: 0.95
A72: 69 | B72: 7 | C72: 10 | D72: 1 | E72: 5 | F72: 0.9
A73: 70 | B73: 7 | C73: 10 | D73: 1 | E73: 8 | F73: 0.825
A74: 71 | B74: 7 | C74: 10 | D74: 1 | E74: 10 | F74: 0.8
A75: 72 | B75: 7 | C75: 10 | D75: 3 | E75: 10 | F75: 1
A76: 73 | B76: 9 | C76: 10 | D76: 1 | E76: 10 | F76: 1
A77: 74 | B77: 1 | C77: 3 | D77: 1 | E77: 2 | F77: 0.8333333333
A78: 75 | B78: 1 | C78: 3 | D78: 2 | E78: 3 | F78: 1
A79: 76 | B79: 1 | C79: 3 | D79: 1 | E79: 4 | F79: 0.5833333333
A80: 77 | B80: 1 | C80: 3 | D80: 1 | E80: 5 | F80: 0.5333333333
A81: 78 | B81: 1 | C81: 3 | D81: 2 | E81: 5 | F81: 0.7333333333
A82: 79 | B82: 1 | C82: 3 | D82: 3 | E82: 5 | F82: 0.9333333333
A83: 80 | B83: 1 | C83: 3 | D83: 1 | E83: 6 | F83: 0.5
A84: 81 | B84: 1 | C84: 3 | D84: 1 | E84: 8 | F84: 0.4583333333
A85: 82 | B85: 1 | C85: 3 | D85: 3 | E85: 8 | F85: 0.7083333333
A86: 83 | B86: 1 | C86: 3 | D86: 5 | E86: 8 | F86: 0.9583333333
A87: 84 | B87: 1 | C87: 3 | D87: 1 | E87: 10 | F87: 0.4333333333
A88: 85 | B88: 1 | C88: 3 | D88: 3 | E88: 10 | F88: 0.6333333333
A89: 86 | B89: 2 | C89: 3 | D89: 1 | E89: 3 | F89: 1
A90: 87 | B90: 2 | C90: 3 | D90: 1 | E90: 4 | F90: 0.9166666667
A91: 88 | B91: 2 | C91: 3 | D91: 1 | E91: 5 | F91: 0.8666666667
A92: 89 | B92: 2 | C92: 3 | D92: 1 | E92: 6 | F92: 0.8333333333
A93: 90 | B93: 2 | C93: 3 | D93: 1 | E93: 8 | F93: 0.7916666667
A94: 91 | B94: 2 | C94: 3 | D94: 1 | E94: 10 | F94: 0.7666666667
A95: 92 | B95: 2 | C95: 3 | D95: 3 | E95: 10 | F95: 0.9666666667
A96: 93 | B96: 1 | C96: 6 | D96: 1 | E96: 2 | F96: 0.6666666667
A97: 94 | B97: 1 | C97: 6 | D97: 1 | E97: 3 | F97: 0.5
A98: 95 | B98: 1 | C98: 6 | D98: 2 | E98: 3 | F98: 0.8333333333
A99: 96 | B99: 1 | C99: 6 | D99: 1 | E99: 4 | F99: 0.4166666667
A100: 97 | B100: 1 | C100: 6 | D100: 3 | E100: 4 | F100: 0.9166666667
A101: 98 | B101: 1 | C101: 6 | D101: 1 | E101: 5 | F101: 0.3666666667
A102: 99 | B102: 1 | C102: 6 | D102: 2 | E102: 5 | F102: 0.5666666667
A103: 100 | B103: 1 | C103: 6 | D103: 3 | E103: 5 | F103: 0.7666666667
A104: 101 | B104: 1 | C104: 6 | D104: 4 | E104: 5 | F104: 0.9666666667
A105: 102 | B105: 1 | C105: 6 | D105: 5 | E105: 6 | F105: 1
A106: 103 | B106: 1 | C106: 6 | D106: 1 | E106: 8 | F106: 0.2916666667
A107: 104 | B107: 1 | C107: 6 | D107: 3 | E107: 8 | F107: 0.5416666667
A108: 105 | B108: 1 | C108: 6 | D108: 5 | E108: 8 | F108: 0.7916666667
A109: 106 | B109: 1 | C109: 6 | D109: 1 | E109: 10 | F109: 0.2666666667
A110: 107 | B110: 1 | C110: 6 | D110: 3 | E110: 10 | F110: 0.4666666667
A111: 108 | B111: 1 | C111: 6 | D111: 7 | E111: 10 | F111: 0.8666666667
A112: 109 | B112: 5 | C112: 6 | D112: 1 | E112: 6 | F112: 1
A113: 110 | B113: 5 | C113: 6 | D113: 1 | E113: 8 | F113: 0.9583333333
A114: 111 | B114: 5 | C114: 6 | D114: 1 | E114: 10 | F114: 0.9333333333
A115: 112 | B115: 1 | C115: 7 | D115: 1 | E115: 2 | F115: 0.6428571429
A116: 113 | B116: 1 | C116: 7 | D116: 1 | E116: 3 | F116: 0.4761904762
A117: 114 | B117: 1 | C117: 7 | D117: 2 | E117: 3 | F117: 0.8095238095
A118: 115 | B118: 1 | C118: 7 | D118: 1 | E118: 4 | F118: 0.3928571429
A119: 116 | B119: 1 | C119: 7 | D119: 3 | E119: 4 | F119: 0.8928571429
A120: 117 | B120: 1 | C120: 7 | D120: 1 | E120: 5 | F120: 0.3428571429
A121: 118 | B121: 1 | C121: 7 | D121: 2 | E121: 5 | F121: 0.5428571429
A122: 119 | B122: 1 | C122: 7 | D122: 3 | E122: 5 | F122: 0.7428571429
A123: 120 | B123: 1 | C123: 7 | D123: 4 | E123: 5 | F123: 0.9428571429
A124: 121 | B124: 1 | C124: 7 | D124: 1 | E124: 6 | F124: 0.3095238095
A125: 122 | B125: 1 | C125: 7 | D125: 5 | E125: 6 | F125: =B125/C125+D125/E125 -> 0.9761904762
A126: 123 | B126: 1 | C126: 7 | D126: 2 | E126: 7 | F126: 0.4285714286
A127: 124 | B127: 1 | C127: 7 | D127: 3 | E127: 7 | F127: 0.5714285714
A128: 125 | B128: 1 | C128: 7 | D128: 4 | E128: 7 | F128: 0.7142857143
A129: 126 | B129: 1 | C129: 7 | D129: 5 | E129: 7 | F129: 0.8571428571
A130: 127 | B130: 1 | C130: 7 | D130: 6 | E130: 7 | F130: 1
A131: 128 | B131: 1 | C131: 7 | D131: 1 | E131: 8 | F131: 0.2678571429
A132: 129 | B132: 1 | C132: 7 | D132: 3 | E132: 8 | F132: 0.5178571429
A133: 130 | B133: 1 | C133: 7 | D133: 5 | E133: 8 | F133: 0.7678571429
A134: 131 | B134: 1 | C134: 7 | D134: 1 | E134: 9 | F134: 0.253968254
A135: 132 | B135: 1 | C135: 7 | D135: 2 | E135: 9 | F135: 0.3650793651
A136: 133 | B136: 1 | C136: 7 | D136: 4 | E136: 9 | F136: 0.5873015873
A137: 134 | B137: 1 | C137: 7 | D137: 5 | E137: 9 | F137: 0.6984126984
A138: 135 | B138: 1 | C138: 7 | D138: 7 | E138: 9 | F138: 0.9206349206
A139: 136 | B139: 1 | C139: 7 | D139: 1 | E139: 10 | F139: 0.2428571429
A140: 137 | B140: 1 | C140: 7 | D140: 3 | E140: 10 | F140: 0.4428571429
A141: 138 | B141: 1 | C141: 7 | D141: 7 | E141: 10 | F141: 0.8428571429
A142: 139 | B142: 1 | C142: 7 | D142: 1 | E142: 11 | F142: 0.2337662338
A143: 140 | B143: 1 | C143: 7 | D143: 2 | E143: 11 | F143: 0.3246753247
A144: 141 | B144: 1 | C144: 7 | D144: 3 | E144: 11 | F144: 0.4155844156
A145: 142 | B145: 1 | C145: 7 | D145: 4 | E145: 11 | F145: 0.5064935065
A146: 143 | B146: 1 | C146: 7 | D146: 5 | E146: 11 | F146: 0.5974025974
A147: 144 | B147: 1 | C147: 7 | D147: 6 | E147: 11 | F147: 0.6883116883
A148: 145 | B148: 1 | C148: 7 | D148: 7 | E148: 11 | F148: 0.7792207792
A149: 146 | B149: 1 | C149: 7 | D149: 8 | E149: 11 | F149: 0.8701298701
A150: 147 | B150: 1 | C150: 7 | D150: 9 | E150: 11 | F150: 0.961038961
A151: 148 | B151: 1 | C151: 7 | D151: 1 | E151: 12 | F151: 0.2261904762
A152: 149 | B152: 1 | C152: 7 | D152: 5 | E152: 12 | F152: 0.5595238095
A153: 150 | B153: 1 | C153: 7 | D153: 7 | E153: 12 | F153: 0.7261904762
A154: 151 | B154: 1 | C154: 7 | D154: 1 | E154: 13 | F154: 0.2197802198
A155: 152 | B155: 1 | C155: 7 | D155: 2 | E155: 13 | F155: 0.2967032967
A156: 153 | B156: 1 | C156: 7 | D156: 3 | E156: 13 | F156: 0.3736263736
A157: 154 | B157: 1 | C157: 7 | D157: 4 | E157: 13 | F157: 0.4505494505
A158: 155 | B158: 1 | C158: 7 | D158: 5 | E158: 13 | F158: 0.5274725275
A159: 156 | B159: 1 | C159: 7 | D159: 6 | E159: 13 | F159: 0.6043956044
A160: 157 | B160: 1 | C160: 7 | D160: 7 | E160: 13 | F160: 0.6813186813
A161: 158 | B161: 1 | C161: 7 | D161: 8 | E161: 13 | F161: 0.7582417582
A162: 159 | B162: 1 | C162: 7 | D162: 9 | E162: 13 | F162: 0.8351648352
A163: 160 | B163: 1 | C163: 7 | D163: 10 | E163: 13 | F163: 0.9120879121
A164: 161 | B164: 1 | C164: 7 | D164: 11 | E164: 13 | F164: 0.989010989
A165: 162 | B165: 1 | C165: 7 | D165: 1 | E165: 14 | F165: 0.2142857143
A166: 163 | B166: 1 | C166: 7 | D166: 3 | E166: 14 | F166: 0.3571428571
A167: 164 | B167: 1 | C167: 7 | D167: 5 | E167: 14 | F167: 0.5
A168: 165 | B168: 1 | C168: 7 | D168: 9 | E168: 14 | F168: 0.7857142857
A169: 166 | B169: 1 | C169: 7 | D169: 11 | E169: 14 | F169: 0.9285714286
A170: 167 | B170: 1 | C170: 7 | D170: 1 | E170: 15 | F170: 0.2095238095
A171: 168 | B171: 1 | C171: 7 | D171: 2 | E171: 15 | F171: 0.2761904762
A172: 169 | B172: 1 | C172: 7 | D172: 4 | E172: 15 | F172: 0.4095238095
A173: 170 | B173: 1 | C173: 7 | D173: 7 | E173: 15 | F173: 0.6095238095
A174: 171 | B174: 1 | C174: 7 | D174: 8 | E174: 15 | F174: 0.6761904762
A175: 172 | B175: 1 | C175: 7 | D175: 11 | E175: 15 | F175: 0.8761904762
A176: 173 | B176: 1 | C176: 7 | D176: 1 | E176: 16 | F176: 0.2053571429
A177: 174 | B177: 1 | C177: 7 | D177: 3 | E177: 16 | F177: 0.3303571429
A178: 175 | B178: 1 | C178: 7 | D178: 5 | E178: 16 | F178: 0.4553571429
A179: 176 | B179: 1 | C179: 7 | D179: 7 | E179: 16 | F179: 0.5803571429
A180: 177 | B180: 1 | C180: 7 | D180: 9 | E180: 16 | F180: 0.7053571429
A181: 178 | B181: 1 | C181: 7 | D181: 11 | E181: 16 | F181: 0.8303571429
A182: 179 | B182: 1 | C182: 7 | D182: 13 | E182: 16 | F182: 0.9553571429
A183: 180 | B183: 2 | C183: 7 | D183: 1 | E183: 2 | F183: 0.7857142857
A184: 181 | B184: 2 | C184: 7 | D184: 1 | E184: 3 | F184: 0.619047619
A185: 182 | B185: 2 | C185: 7 | D185: 2 | E185: 3 | F185: 0.9523809524
A186: 183 | B186: 2 | C186: 7 | D186: 1 | E186: 4 | F186: 0.5357142857
A187: 184 | B187: 2 | C187: 7 | D187: 1 | E187: 5 | F187: 0.4857142857
A188: 185 | B188: 2 | C188: 7 | D188: 2 | E188: 5 | F188: =B188/C188+D188/E188 -> 0.6857142857
A189: 186 | B189: 2 | C189: 7 | D189: 3 | E189: 5 | F189: 0.8857142857
A190: 187 | B190: 2 | C190: 7 | D190: 1 | E190: 6 | F190: 0.4523809524
A191: 188 | B191: 2 | C191: 7 | D191: 1 | E191: 7 | F191: 0.4285714286
A192: 189 | B192: 2 | C192: 7 | D192: 3 | E192: 7 | F192: 0.7142857143
A193: 190 | B193: 2 | C193: 7 | D193: 4 | E193: 7 | F193: 0.8571428571
A194: 191 | B194: 2 | C194: 7 | D194: 5 | E194: 7 | F194: 1
A195: 192 | B195: 2 | C195: 7 | D195: 1 | E195: 8 | F195: 0.4107142857
A196: 193 | B196: 2 | C196: 7 | D196: 3 | E196: 8 | F196: 0.6607142857
A197: 194 | B197: 2 | C197: 7 | D197: 5 | E197: 8 | F197: 0.9107142857
A198: 195 | B198: 2 | C198: 7 | D198: 1 | E198: 9 | F198: 0.3968253968
A199: 196 | B199: 2 | C199: 7 | D199: 2 | E199: 9 | F199: 0.5079365079
A200: 197 | B200: 2 | C200: 7 | D200: 4 | E200: 9 | F200: 0.7301587302
... 2281 more rows
